{"text_format":"1","workbook":"xlsx","n_sheets":19,"sheets":["IT","Report","Barcodescan","Measurements 1p_IN","Measurements 1p_CM","Measurements 3p_IN","Measurements 3p_CM","Measurements 3p_CM_Tolsize","Measurements 5p_IN","Measurements 5p_CM","Measurements 10p_IN","Measurements 10p_CM","Measurements 20p","Measurements Shoes 3p","Picking","Packinglist","Shipment data","Inspection data","Points to check data"],"not_rendered":{"charts":0,"images":3,"macros":1,"external_links":5,"defined_names":101,"comments":1,"pivot_tables":0},"unopened":[],"bounds":{"document_bytes":16777216,"sheet_cells":100000,"rows_first":2000,"rows_last":500,"rows_between":2000,"halvings":0,"cell_chars":16384,"cell_head_chars":4096},"cells_cut":0,"cells_raw":0,"read":"whole","date_system":"1900"}

{"sheet":"IT","index":0,"n_rows":2,"n_cols":3,"rows_kept":2,"cut":false,"hidden":true,"merged":[]}
["Customer","Version","Code"]
[{"$f":"Picking!J6","v":""},"aqm_inspection_light_2.0","TP_RE028"]

{"sheet":"Report","index":1,"n_rows":101,"n_cols":58,"rows_kept":101,"cut":false,"hidden":false,"merged":[[98,1,99,6],[100,1,100,6],[102,1,102,6],[100,29,100,30],[100,31,100,32],[100,33,100,36],[102,7,102,8],[102,9,102,10],[102,11,102,12],[102,13,102,16],[102,17,102,18],[102,19,102,20],[102,21,102,22],[102,23,102,26],[102,27,102,28],[102,29,102,30],[102,31,102,32],[102,33,102,36],[100,7,100,8],[100,9,100,10],[100,11,100,12],[100,13,100,16],[100,17,100,18],[100,19,100,20],[100,21,100,22],[100,23,100,26],[100,27,100,28],[98,31,98,32],[98,33,98,36],[99,7,99,8],[99,9,99,10],[99,11,99,12],[99,13,99,16],[99,17,99,18],[99,19,99,20],[99,21,99,22],[99,23,99,26],[99,27,99,28],[99,29,99,30],[99,31,99,32],[99,33,99,36],[98,7,98,8],[98,9,98,10],[98,11,98,12],[98,19,98,20],[98,21,98,22],[98,13,98,16],[98,17,98,18],[98,23,98,26],[98,27,98,28],[98,29,98,30],[7,23,7,27],[5,23,5,27],[5,28,5,36],[6,23,6,27],[6,28,6,36],[64,22,64,36],[96,7,96,36],[34,17,34,26],[46,20,46,21],[56,22,56,36],[58,7,58,16],[58,20,58,21],[44,28,44,36],[39,10,39,16],[40,10,40,16],[41,10,41,16],[60,7,60,16],[33,9,33,12],[8,19,8,22],[9,19,9,22],[10,19,10,22],[85,22,85,36],[83,22,83,36],[89,22,89,36],[86,22,86,36],[84,20,84,21],[84,22,84,36],[86,20,86,21],[12,15,13,20],[17,15,18,20],[79,20,79,21],[82,22,82,36],[75,7,75,16],[80,22,80,36],[81,20,81,21],[81,22,81,36],[72,7,72,16],[73,7,73,16],[87,22,87,36],[79,22,79,36],[82,20,82,21],[68,17,68,19],[69,17,69,19],[70,17,70,19],[71,17,71,19],[83,17,83,19],[84,17,84,19],[85,17,85,19],[86,17,86,19],[87,17,87,19],[88,17,88,19],[89,17,89,19],[85,20,85,21],[87,20,87,21],[83,20,83,21],[93,5,93,6],[93,7,93,16],[93,17,93,19],[93,20,93,21],[92,22,92,36],[90,5,90,6],[91,5,91,6],[92,5,92,6],[88,20,88,21],[88,22,88,36],[89,20,89,21],[89,5,89,6],[89,7,89,16],[94,7,94,16],[90,22,90,36],[91,22,91,36],[94,20,94,21],[94,22,94,36],[90,7,90,16],[91,7,91,16],[92,7,92,16],[93,22,93,36],[90,17,90,19],[91,17,91,19],[92,17,92,19],[90,20,90,21],[91,20,91,21],[92,20,92,21],[94,17,94,19],[74,17,74,19],[72,17,72,19],[73,17,73,19],[82,17,82,19],[79,17,79,19],[80,17,80,19],[81,17,81,19],[75,17,75,19],[77,17,77,19],[78,17,78,19],[80,20,80,21],[78,20,78,21],[52,22,52,36],[44,18,44,26],[49,20,49,21],[65,7,65,16],[64,17,64,19],[65,17,65,19],[38,18,38,26],[48,20,48,21],[56,7,56,16],[59,7,59,16],[59,20,59,21],[59,22,59,36],[65,22,65,36],[35,3,44,8],[35,10,35,16],[36,10,36,16],[37,10,37,16],[38,10,38,16],[46,3,60,4],[57,5,57,6],[57,7,57,16],[59,5,59,6],[64,7,64,16],[52,17,52,19],[85,7,85,16],[88,5,88,6],[67,5,67,6],[67,7,67,16],[72,5,72,6],[73,5,73,6],[79,7,79,16],[80,7,80,16],[81,7,81,16],[82,7,82,16],[83,7,83,16],[84,7,84,16],[86,7,86,16],[87,7,87,16],[88,7,88,16],[68,7,68,16],[69,7,69,16],[74,7,74,16],[70,7,70,16],[71,7,71,16],[52,5,52,6],[56,17,56,19],[57,17,57,19],[58,17,58,19],[59,17,59,19],[60,17,60,19],[57,20,57,21],[55,7,55,16],[46,1,60,2],[46,7,46,16],[47,20,47,21],[53,17,53,19],[51,5,51,6],[53,5,53,6],[54,5,54,6],[54,7,54,16],[49,5,49,6],[52,7,52,16],[49,7,49,16],[51,7,51,16],[55,17,55,19],[55,20,55,21],[46,5,46,6],[49,17,49,19],[50,17,50,19],[51,17,51,19],[78,7,78,16],[77,7,77,16],[66,22,66,36],[68,22,68,36],[66,17,66,19],[62,1,62,2],[62,5,62,6],[62,7,62,16],[53,20,53,21],[67,17,67,19],[66,7,66,16],[75,22,75,36],[78,22,78,36],[62,20,62,21],[62,22,62,36],[67,20,67,21],[67,22,67,36],[71,20,71,21],[71,22,71,36],[77,22,77,36],[70,22,70,36],[72,20,72,21],[72,22,72,36],[73,20,73,21],[73,22,73,36],[77,20,77,21],[64,20,64,21],[65,20,65,21],[66,20,66,21],[68,20,68,21],[69,20,69,21],[74,20,74,21],[75,20,75,21],[76,20,76,21],[96,1,96,6],[77,1,94,2],[94,5,94,6],[68,5,68,6],[69,5,69,6],[70,5,70,6],[71,5,71,6],[74,5,74,6],[77,5,77,6],[78,5,78,6],[64,1,75,2],[85,5,85,6],[64,5,64,6],[75,5,75,6],[65,5,65,6],[84,5,84,6],[86,5,86,6],[87,5,87,6],[77,3,94,4],[79,5,79,6],[80,5,80,6],[81,5,81,6],[82,5,82,6],[83,5,83,6],[47,17,47,19],[28,21,28,26],[50,5,50,6],[42,10,42,16],[26,1,26,8],[22,26,22,32],[23,26,23,32],[19,15,20,20],[7,28,7,36],[25,27,25,31],[25,32,25,36],[24,1,24,29],[25,9,25,14],[25,15,25,20],[8,23,8,36],[9,23,9,36],[10,23,10,36],[19,31,20,36],[22,15,23,25],[17,9,18,14],[41,28,41,36],[42,28,42,36],[48,17,48,19],[33,27,33,31],[0,1,3,36],[26,32,26,36],[27,32,27,36],[28,32,28,36],[25,1,25,8],[25,21,25,26],[28,1,28,8],[26,9,26,14],[27,9,27,14],[28,9,28,14],[26,15,26,20],[27,15,27,20],[28,15,28,20],[26,21,26,26],[27,21,27,26],[28,27,28,31],[24,30,24,36],[22,33,22,36],[27,1,27,8],[26,27,26,31],[12,1,20,8],[19,9,20,14],[12,21,13,27],[14,21,15,27],[66,5,66,6],[56,5,56,6],[39,18,39,26],[60,5,60,6],[41,18,41,26],[53,22,53,36],[54,20,54,21],[46,22,46,36],[49,22,49,36],[50,7,50,16],[50,20,50,21],[50,22,50,36],[53,7,53,16],[44,10,44,16],[43,10,43,16],[55,5,55,6],[47,7,47,16],[48,7,48,16],[54,22,54,36],[54,17,54,19],[51,22,51,36],[55,22,55,36],[51,20,51,21],[46,17,46,19],[62,3,62,4],[64,3,75,4],[40,18,40,26],[58,22,58,36],[42,18,42,26],[43,18,43,26],[35,28,35,36],[35,18,35,26],[74,22,74,36],[70,20,70,21],[60,22,60,36],[69,22,69,36],[60,20,60,21],[62,17,62,19],[57,22,57,36],[56,20,56,21],[43,28,43,36],[47,22,47,36],[52,20,52,21],[48,22,48,36],[58,5,58,6],[47,5,47,6],[48,5,48,6],[40,28,40,36],[33,17,33,21],[33,22,33,26],[33,13,33,16],[31,27,31,36],[32,27,32,31],[32,22,32,26],[34,27,34,36],[36,28,36,36],[33,32,33,36],[12,28,13,33],[14,28,15,33],[12,34,13,36],[14,34,15,36],[12,9,13,14],[14,9,15,14],[14,15,15,20],[17,21,18,25],[17,26,18,30],[17,31,18,36],[23,33,23,36],[19,21,20,25],[19,26,20,30],[30,3,30,8],[30,9,30,16],[30,1,44,2],[37,28,37,36],[27,27,27,31],[5,1,5,5],[5,6,5,13],[6,1,6,5],[7,1,7,5],[8,1,8,5],[9,1,9,5],[10,1,10,5],[6,6,6,13],[7,6,7,13],[10,6,10,13],[8,6,8,13],[9,6,9,13],[31,17,31,26],[32,17,32,21],[36,18,36,26],[37,18,37,26],[31,3,33,8],[34,3,34,8],[30,27,30,36],[101,29,101,30],[101,31,101,32],[101,33,101,36],[101,1,101,6],[101,7,101,8],[101,9,101,10],[101,11,101,12],[101,13,101,16],[101,17,101,18],[101,19,101,20],[101,21,101,22],[101,23,101,26],[101,27,101,28],[32,32,32,36],[30,17,30,26],[31,9,31,16],[32,9,32,12],[32,13,32,16],[39,28,39,36],[34,9,34,16],[38,28,38,36]]}
[null,"    Inspection report",null,null,null,null,null,null,null,null,null,null,null,null,null,null,null,null,null,null,null,null,null,null,null,null,null,null,null,null,null,null,null,null,null,null,null,null,null,null,null,null,null,null,null,null,null,null,"Pass"]
[null,null,null,null,null,null,null,null,null,null,null,null,null,null,null,null,null,null,null,null,null,null,null,null,null,null,null,null,null,null,null,null,null,null,null,null,null,null,null,null,null,null,null,null,null,null,null,null,"Rev"]
[null,null,null,null,null,null,null,null,null,null,null,null,null,null,null,null,null,null,null,null,null,null,null,null,null,null,null,null,null,null,null,null,null,null,null,null,null,null,null,null,null,null,null,null,null,null,null,null,"Fail"]
[null,null,null,null,null,null,null,null,null,null,null,null,null,null,null,null,null,null,null,null,null,null,null,null,null,null,null,null,null,null,null,null,null,null,null,null,null,null,null,null,null,null,null,null,null,null,null,null,"N/A"]
[]
[null,"Office",null,null,null,null,{"$f":"Picking!AO1","v":""},null,null,null,null,null,null,null,null,null,null,null,null,null,null,null,null,"Customer",null,null,null,null,{"$f":"Picking!J6","v":""}]
[null,"Report number",null,null,null,null,{"$f":"Picking!AA6","v":""},null,null,null,null,null,null,null,null,null,null,null,null,null,null,null,null,"Brand",null,null,null,null,{"$f":"Picking!J7","v":""}]
[null,"Inspection type",null,null,null,null,{"$f":"Picking!AA7","v":""}]
[null,"Inspection date",null,null,null,null,{"$f":"Picking!AA9","v":"00:00:00"},null,null,null,null,null,null,null,null,null,null,null,null,"Agent",null,null,null,{"$f":"Picking!AA13","v":""}]
[null,"Inspection city",null,null,null,null,{"$f":"Picking!AA12","v":""},null,null,null,null,null,null,null,null,null,null,null,null,"Supplier",null,null,null,{"$f":"Picking!AA14","v":""}]
[null,"Inspector",null,null,null,null,{"$f":"Picking!AA17","v":""},null,null,null,null,null,null,null,null,null,null,null,null,"Factory",null,null,null,{"$f":"Picking!AA15","v":""}]
[]
[null,null,null,null,null,null,null,null,null,"Order number",null,null,null,null,null,"Reference / Style",null,null,null,null,null,"Color",null,null,null,null,null,null,"Description",null,null,null,null,null,"Inspection level"]
[]
[null,null,null,null,null,null,null,null,null,{"$f":"Picking!J8","v":""},null,null,null,null,null,{"$f":"CONCATENATE(IF(ISBLANK(Picking!J9),\"\",Picking!J9),IF(ISBLANK(Picking!J10),\"\",CONCATENATE(\" \",Picking!J10)))","v":" "},null,null,null,null,null,{"$f":"CONCATENATE(Picking!V20,IF(Picking!V21=\"\",\"\",\"+\"),Picking!V21,IF(Picking!V22=\"\",\"\",\"+\"),Picking!V22,IF(Picking!V23=\"\",\"\",\"+\"),Picking!V23,IF(Picking!V24=\"\",\"\",\"+\"),Picking!V24,,IF(Picking!V25=\"\",\"\",\"+\"),Picking!V25)","v":""},null,null,null,null,null,null,{"$f":"Picking!J11","v":""},null,null,null,null,null,{"$f":"Picking!AA8","v":""}]
[]
[]
[null,null,null,null,null,null,null,null,null,"Ordered quantity",null,null,null,null,null,"Packed quantity",null,null,null,null,null,"Presented quantity",null,null,null,null,"Cartons quantity",null,null,null,null,"Quantity inspected"]
[]
[null,null,null,null,null,null,null,null,null,{"$f":"Picking!J14","v":" "},null,null,null,null,null,{"$f":"Picking!J15","v":" "},null,null,null,null,null,{"$f":"Picking!J16","v":" "},null,null,null,null,{"$f":"Picking!J17","v":" "},null,null,null,null,{"$f":"Picking!J21","v":0}]
[]
[]
[]
[]
[]
[null,null,null,null,null,null,null,null,null,"1.Workmanship",null,null,null,null,null,"2.Conformity",null,null,null,null,null,"3.Measurement",null,null,null,null,null,"4.Test",null,null,null,null,"5.Packing"]
[null,"Passed",null,null,null,null,null,null,null,{"$f":"IF(AND(RIGHT(AH23,3)<>\"pcs\",RIGHT(AH23,1)<>\"%\",R34<>\"NA\",R34<>\"N/A\",J35<N34,R35<W34,AB35<AG34),\"X\",\"\")","v":""},null,null,null,null,null,{"$f":"IF(D47=\"Pass\",\"X\",\"\")","v":"X"},null,null,null,null,null,{"$f":"IF(D63=\"Pass\",\"X\",\"\")","v":"X"},null,null,null,null,null,{"$f":"IF(D65=\"Pass\",\"X\",\"\")","v":"X"},null,null,null,null,{"$f":"IF(D78=\"Pass\",\"X\",\"\")","v":"X"}]
[null,"Failed",null,null,null,null,null,null,null,{"$f":"IF(AND(RIGHT(AH23,3)<>\"pcs\",RIGHT(AH23,1)<>\"%\",R34<>\"NA\",R34<>\"N/A\",OR(J35>J34,R35>R34,AB35>AB34)),\"X\",\"\")","v":""},null,null,null,null,null,{"$f":"IF(D47=\"Fail\",\"X\",\"\")","v":""},null,null,null,null,null,{"$f":"IF(D63=\"Fail\",\"X\",\"\")","v":""},null,null,null,null,null,{"$f":"IF(D65=\"Fail\",\"X\",\"\")","v":""},null,null,null,null,{"$f":"IF(D78=\"Fail\",\"X\",\"\")","v":""}]
[null,"Reservation",null,null,null,null,null,null,null,{"$f":"IF(OR(RIGHT(AH23,3)=\"pcs\",RIGHT(AH23,1)=\"%\"),\"X\",\"\")","v":""},null,null,null,null,null,{"$f":"IF(D47=\"Rev\",\"X\",\"\")","v":""},null,null,null,null,null,{"$f":"IF(D63=\"Rev\",\"X\",\"\")","v":""},null,null,null,null,null,{"$f":"IF(D65=\"Rev\",\"X\",\"\")","v":""},null,null,null,null,{"$f":"IF(D78=\"Rev\",\"X\",\"\")","v":""}]
[]
[null,"1. Workmanship",null," AQL Level",null,null,null,null,null,"Critical defects",null,null,null,null,null,null,null,"Major defects",null,null,null,null,null,null,null,null,null,"Minor defects"]
[null,null,null,"allowance",null,null,null,null,null,{"$f":"Picking!AM1","v":0},null,null,null,null,null,null,null,{"$f":"Picking!AM2","v":""},null,null,null,null,null,null,null,null,null,{"$f":"Picking!AM3","v":""}]
[null,null,null,null,null,null,null,null,null,"accepted",null,null,null,"refused",null,null,null,"accepted",null,null,null,null,"refused",null,null,null,null,"accepted",null,null,null,null,"refused"]
[null,null,null,null,null,null,null,null,null,0,null,null,null,1]
[null,null,null,"N° of defects",null,null,null,null,null,{"$f":"SUM(J36:J45)","v":0},null,null,null,null,null,null,null,{"$f":"SUM(R36:R45)","v":0},null,null,null,null,null,null,null,null,null,{"$f":"SUM(AB36:AB45)","v":0}]
[null,null,null,"Nature of defects"]
[]
[]
[]
[]
[]
[]
[]
[]
[]
[]
[null,"2. Conformity",null,"Pass",null,{"$f":"IF('Points to check data'!A3=\"\",\"\",CONCATENATE(\"2.\",'Points to check data'!A3))","v":""},null,{"$f":"IF('Points to check data'!B3=\"\",\"\",'Points to check data'!B3)","v":""},null,null,null,null,null,null,null,null,null,"Pass",null,null,1,null,null,null,null,null,null,null,null,null,null,null,null,null,null,null,null,null,null,null,null,null,null,null,null,null,null,null,null,null,null,null,null,null,null,null,{"$f":"W47","v":0}]
[null,null,null,null,null,{"$f":"IF('Points to check data'!A4=\"\",\"\",CONCATENATE(\"2.\",'Points to check data'!A4))","v":""},null,{"$f":"IF('Points to check data'!B4=\"\",\"\",'Points to check data'!B4)","v":""},null,null,null,null,null,null,null,null,null,"Pass",null,null,1,null,null,null,null,null,null,null,null,null,null,null,null,null,null,null,null,null,null,null,null,null,null,null,null,null,null,null,null,null,null,null,null,null,null,null,{"$f":"W48","v":0}]
[null,null,null,null,null,{"$f":"IF('Points to check data'!A5=\"\",\"\",CONCATENATE(\"2.\",'Points to check data'!A5))","v":""},null,{"$f":"IF('Points to check data'!B5=\"\",\"\",'Points to check data'!B5)","v":""},null,null,null,null,null,null,null,null,null,"Pass",null,null,1,null,null,null,null,null,null,null,null,null,null,null,null,null,null,null,null,null,null,null,null,null,null,null,null,null,null,null,null,null,null,null,null,null,null,null,0]
[null,null,null,null,null,{"$f":"IF('Points to check data'!A6=\"\",\"\",CONCATENATE(\"2.\",'Points to check data'!A6))","v":""},null,{"$f":"IF('Points to check data'!B6=\"\",\"\",'Points to check data'!B6)","v":""},null,null,null,null,null,null,null,null,null,"Pass",null,null,1,null,null,null,null,null,null,null,null,null,null,null,null,null,null,null,null,null,null,null,null,null,null,null,null,null,null,null,null,null,null,null,null,null,null,null,0]
[null,null,null,null,null,{"$f":"IF('Points to check data'!A7=\"\",\"\",CONCATENATE(\"2.\",'Points to check data'!A7))","v":""},null,{"$f":"IF('Points to check data'!B7=\"\",\"\",'Points to check data'!B7)","v":""},null,null,null,null,null,null,null,null,null,"Pass",null,null,1,null,null,null,null,null,null,null,null,null,null,null,null,null,null,null,null,null,null,null,null,null,null,null,null,null,null,null,null,null,null,null,null,null,null,null,0]
[null,null,null,null,null,{"$f":"IF('Points to check data'!A8=\"\",\"\",CONCATENATE(\"2.\",'Points to check data'!A8))","v":""},null,{"$f":"IF('Points to check data'!B8=\"\",\"\",'Points to check data'!B8)","v":""},null,null,null,null,null,null,null,null,null,"Pass",null,null,1,null,null,null,null,null,null,null,null,null,null,null,null,null,null,null,null,null,null,null,null,null,null,null,null,null,null,null,null,null,null,null,null,null,null,null,0]
[null,null,null,null,null,{"$f":"IF('Points to check data'!A9=\"\",\"\",CONCATENATE(\"2.\",'Points to check data'!A9))","v":""},null,{"$f":"IF('Points to check data'!B9=\"\",\"\",'Points to check data'!B9)","v":""},null,null,null,null,null,null,null,null,null,"Pass",null,null,1,null,null,null,null,null,null,null,null,null,null,null,null,null,null,null,null,null,null,null,null,null,null,null,null,null,null,null,null,null,null,null,null,null,null,null,0]
[null,null,null,null,null,{"$f":"IF('Points to check data'!A10=\"\",\"\",CONCATENATE(\"2.\",'Points to check data'!A10))","v":""},null,{"$f":"IF('Points to check data'!B10=\"\",\"\",'Points to check data'!B10)","v":""},null,null,null,null,null,null,null,null,null,"Pass",null,null,1,null,null,null,null,null,null,null,null,null,null,null,null,null,null,null,null,null,null,null,null,null,null,null,null,null,null,null,null,null,null,null,null,null,null,null,0]
[null,null,null,null,null,{"$f":"IF('Points to check data'!A11=\"\",\"\",CONCATENATE(\"2.\",'Points to check data'!A11))","v":""},null,{"$f":"IF('Points to check data'!B11=\"\",\"\",'Points to check data'!B11)","v":""},null,null,null,null,null,null,null,null,null,"Pass",null,null,1,null,null,null,null,null,null,null,null,null,null,null,null,null,null,null,null,null,null,null,null,null,null,null,null,null,null,null,null,null,null,null,null,null,null,null,0]
[null,null,null,null,null,{"$f":"IF('Points to check data'!A12=\"\",\"\",CONCATENATE(\"2.\",'Points to check data'!A12))","v":""},null,{"$f":"IF('Points to check data'!B12=\"\",\"\",'Points to check data'!B12)","v":""},null,null,null,null,null,null,null,null,null,"Pass",null,null,1,null,null,null,null,null,null,null,null,null,null,null,null,null,null,null,null,null,null,null,null,null,null,null,null,null,null,null,null,null,null,null,null,null,null,null,0]
[null,null,null,null,null,{"$f":"IF('Points to check data'!A13=\"\",\"\",CONCATENATE(\"2.\",'Points to check data'!A13))","v":""},null,{"$f":"IF('Points to check data'!B13=\"\",\"\",'Points to check data'!B13)","v":""},null,null,null,null,null,null,null,null,null,"Pass",null,null,1,null,null,null,null,null,null,null,null,null,null,null,null,null,null,null,null,null,null,null,null,null,null,null,null,null,null,null,null,null,null,null,null,null,null,null,0]
[null,null,null,null,null,{"$f":"IF('Points to check data'!A14=\"\",\"\",CONCATENATE(\"2.\",'Points to check data'!A14))","v":""},null,{"$f":"IF('Points to check data'!B14=\"\",\"\",'Points to check data'!B14)","v":""},null,null,null,null,null,null,null,null,null,"Pass",null,null,1,null,null,null,null,null,null,null,null,null,null,null,null,null,null,null,null,null,null,null,null,null,null,null,null,null,null,null,null,null,null,null,null,null,null,null,0]
[null,null,null,null,null,{"$f":"IF('Points to check data'!A15=\"\",\"\",CONCATENATE(\"2.\",'Points to check data'!A15))","v":""},null,{"$f":"IF('Points to check data'!B15=\"\",\"\",'Points to check data'!B15)","v":""},null,null,null,null,null,null,null,null,null,"Pass",null,null,1,null,null,null,null,null,null,null,null,null,null,null,null,null,null,null,null,null,null,null,null,null,null,null,null,null,null,null,null,null,null,null,null,null,null,null,0]
[null,null,null,null,null,{"$f":"IF('Points to check data'!A16=\"\",\"\",CONCATENATE(\"2.\",'Points to check data'!A16))","v":""},null,{"$f":"IF('Points to check data'!B16=\"\",\"\",'Points to check data'!B16)","v":""},null,null,null,null,null,null,null,null,null,"Pass",null,null,1,null,null,null,null,null,null,null,null,null,null,null,null,null,null,null,null,null,null,null,null,null,null,null,null,null,null,null,null,null,null,null,null,null,null,null,0]
[null,null,null,null,null,{"$f":"IF('Points to check data'!A17=\"\",\"\",CONCATENATE(\"2.\",'Points to check data'!A17))","v":""},null,{"$f":"IF('Points to check data'!B17=\"\",\"\",'Points to check data'!B17)","v":""},null,null,null,null,null,null,null,null,null,"Pass",null,null,1,null,null,null,null,null,null,null,null,null,null,null,null,null,null,null,null,null,null,null,null,null,null,null,null,null,null,null,null,null,null,null,null,null,null,null,0]
[]
[null,"3.",null,"Pass",null,3.1,null,"Measurements problems",null,null,null,null,null,null,null,null,null,"Pass",null,null,1,null,null,null,null,null,null,null,null,null,null,null,null,null,null,null,null,null,null,null,null,null,null,null,null,null,null,null,null,null,null,null,null,null,null,null,0,"a\na\na"]
[]
[null,"4. Test",null,"Pass",null,{"$f":"IF('Points to check data'!G3=\"\",\"\",CONCATENATE(\"4.\",'Points to check data'!G3))","v":""},null,{"$f":"IF('Points to check data'!H3=\"\",\"\",'Points to check data'!H3)","v":""},null,null,null,null,null,null,null,null,null,"Pass",null,null,1,null,null,null,null,null,null,null,null,null,null,null,null,null,null,null,null,null,null,null,null,null,null,null,null,null,null,null,null,null,null,null,null,null,null,null,0]
[null,null,null,null,null,{"$f":"IF('Points to check data'!G4=\"\",\"\",CONCATENATE(\"4.\",'Points to check data'!G4))","v":""},null,{"$f":"IF('Points to check data'!H4=\"\",\"\",'Points to check data'!H4)","v":""},null,null,null,null,null,null,null,null,null,"Pass",null,null,1,null,null,null,null,null,null,null,null,null,null,null,null,null,null,null,null,null,null,null,null,null,null,null,null,null,null,null,null,null,null,null,null,null,null,null,0]
[null,null,null,null,null,{"$f":"IF('Points to check data'!G5=\"\",\"\",CONCATENATE(\"4.\",'Points to check data'!G5))","v":""},null,{"$f":"IF('Points to check data'!H5=\"\",\"\",'Points to check data'!H5)","v":""},null,null,null,null,null,null,null,null,null,"Pass",null,null,1,null,null,null,null,null,null,null,null,null,null,null,null,null,null,null,null,null,null,null,null,null,null,null,null,null,null,null,null,null,null,null,null,null,null,null,0]
[null,null,null,null,null,{"$f":"IF('Points to check data'!G6=\"\",\"\",CONCATENATE(\"4.\",'Points to check data'!G6))","v":""},null,{"$f":"IF('Points to check data'!H6=\"\",\"\",'Points to check data'!H6)","v":""},null,null,null,null,null,null,null,null,null,"Pass",null,null,1,null,null,null,null,null,null,null,null,null,null,null,null,null,null,null,null,null,null,null,null,null,null,null,null,null,null,null,null,null,null,null,null,null,null,null,0]
[null,null,null,null,null,{"$f":"IF('Points to check data'!G7=\"\",\"\",CONCATENATE(\"4.\",'Points to check data'!G7))","v":""},null,{"$f":"IF('Points to check data'!H7=\"\",\"\",'Points to check data'!H7)","v":""},null,null,null,null,null,null,null,null,null,"Pass",null,null,1,null,null,null,null,null,null,null,null,null,null,null,null,null,null,null,null,null,null,null,null,null,null,null,null,null,null,null,null,null,null,null,null,null,null,null,0]
[null,null,null,null,null,{"$f":"IF('Points to check data'!G8=\"\",\"\",CONCATENATE(\"4.\",'Points to check data'!G8))","v":""},null,{"$f":"IF('Points to check data'!H8=\"\",\"\",'Points to check data'!H8)","v":""},null,null,null,null,null,null,null,null,null,"Pass",null,null,1,null,null,null,null,null,null,null,null,null,null,null,null,null,null,null,null,null,null,null,null,null,null,null,null,null,null,null,null,null,null,null,null,null,null,null,0]
[null,null,null,null,null,{"$f":"IF('Points to check data'!G9=\"\",\"\",CONCATENATE(\"4.\",'Points to check data'!G9))","v":""},null,{"$f":"IF('Points to check data'!H9=\"\",\"\",'Points to check data'!H9)","v":""},null,null,null,null,null,null,null,null,null,"Pass",null,null,1,null,null,null,null,null,null,null,null,null,null,null,null,null,null,null,null,null,null,null,null,null,null,null,null,null,null,null,null,null,null,null,null,null,null,null,0]
[null,null,null,null,null,{"$f":"IF('Points to check data'!G10=\"\",\"\",CONCATENATE(\"4.\",'Points to check data'!G10))","v":""},null,{"$f":"IF('Points to check data'!H10=\"\",\"\",'Points to check data'!H10)","v":""},null,null,null,null,null,null,null,null,null,"Pass",null,null,1,null,null,null,null,null,null,null,null,null,null,null,null,null,null,null,null,null,null,null,null,null,null,null,null,null,null,null,null,null,null,null,null,null,null,null,0]
[null,null,null,null,null,{"$f":"IF('Points to check data'!G11=\"\",\"\",CONCATENATE(\"4.\",'Points to check data'!G11))","v":""},null,{"$f":"IF('Points to check data'!H11=\"\",\"\",'Points to check data'!H11)","v":""},null,null,null,null,null,null,null,null,null,"Pass",null,null,1,null,null,null,null,null,null,null,null,null,null,null,null,null,null,null,null,null,null,null,null,null,null,null,null,null,null,null,null,null,null,null,null,null,null,null,0]
[null,null,null,null,null,{"$f":"IF('Points to check data'!G12=\"\",\"\",CONCATENATE(\"4.\",'Points to check data'!G12))","v":""},null,{"$f":"IF('Points to check data'!H12=\"\",\"\",'Points to check data'!H12)","v":""},null,null,null,null,null,null,null,null,null,"Pass",null,null,1,null,null,null,null,null,null,null,null,null,null,null,null,null,null,null,null,null,null,null,null,null,null,null,null,null,null,null,null,null,null,null,null,null,null,null,0]
[null,null,null,null,null,{"$f":"IF('Points to check data'!G13=\"\",\"\",CONCATENATE(\"4.\",'Points to check data'!G13))","v":""},null,{"$f":"IF('Points to check data'!H13=\"\",\"\",'Points to check data'!H13)","v":""},null,null,null,null,null,null,null,null,null,"Pass",null,null,1,null,null,null,null,null,null,null,null,null,null,null,null,null,null,null,null,null,null,null,null,null,null,null,null,null,null,null,null,null,null,null,null,null,null,null,0]
[null,null,null,null,null,{"$f":"IF('Points to check data'!G14=\"\",\"\",CONCATENATE(\"4.\",'Points to check data'!G14))","v":""},null,{"$f":"IF('Points to check data'!H14=\"\",\"\",'Points to check data'!H14)","v":""},null,null,null,null,null,null,null,null,null,"Pass",null,null,1,null,null,null,null,null,null,null,null,null,null,null,null,null,null,null,null,null,null,null,null,null,null,null,null,null,null,null,null,null,null,null,null,null,null,null,0]
[]
[null,"5. Packing",null,"Pass",null,{"$f":"IF('Points to check data'!M3=\"\",\"\",CONCATENATE(\"5.\",'Points to check data'!M3))","v":""},null,{"$f":"IF('Points to check data'!N3=\"\",\"\",'Points to check data'!N3)","v":""},null,null,null,null,null,null,null,null,null,"Pass",null,null,1,null,null,null,null,null,null,null,null,null,null,null,null,null,null,null,null,null,null,null,null,null,null,null,null,null,null,null,null,null,null,null,null,null,null,null,0]
[null,null,null,null,null,{"$f":"IF('Points to check data'!M4=\"\",\"\",CONCATENATE(\"5.\",'Points to check data'!M4))","v":""},null,{"$f":"IF('Points to check data'!N4=\"\",\"\",'Points to check data'!N4)","v":""},null,null,null,null,null,null,null,null,null,"Pass",null,null,1,null,null,null,null,null,null,null,null,null,null,null,null,null,null,null,null,null,null,null,null,null,null,null,null,null,null,null,null,null,null,null,null,null,null,null,0]
[null,null,null,null,null,{"$f":"IF('Points to check data'!M5=\"\",\"\",CONCATENATE(\"5.\",'Points to check data'!M5))","v":""},null,{"$f":"IF('Points to check data'!N5=\"\",\"\",'Points to check data'!N5)","v":""},null,null,null,null,null,null,null,null,null,"Pass",null,null,1,null,null,null,null,null,null,null,null,null,null,null,null,null,null,null,null,null,null,null,null,null,null,null,null,null,null,null,null,null,null,null,null,null,null,null,0]
[null,null,null,null,null,{"$f":"IF('Points to check data'!M6=\"\",\"\",CONCATENATE(\"5.\",'Points to check data'!M6))","v":""},null,{"$f":"IF('Points to check data'!N6=\"\",\"\",'Points to check data'!N6)","v":""},null,null,null,null,null,null,null,null,null,"Pass",null,null,1,null,null,null,null,null,null,null,null,null,null,null,null,null,null,null,null,null,null,null,null,null,null,null,null,null,null,null,null,null,null,null,null,null,null,null,0]
[null,null,null,null,null,{"$f":"IF('Points to check data'!M7=\"\",\"\",CONCATENATE(\"5.\",'Points to check data'!M7))","v":""},null,{"$f":"IF('Points to check data'!N7=\"\",\"\",'Points to check data'!N7)","v":""},null,null,null,null,null,null,null,null,null,"Pass",null,null,1,null,null,null,null,null,null,null,null,null,null,null,null,null,null,null,null,null,null,null,null,null,null,null,null,null,null,null,null,null,null,null,null,null,null,null,0]
[null,null,null,null,null,{"$f":"IF('Points to check data'!M8=\"\",\"\",CONCATENATE(\"5.\",'Points to check data'!M8))","v":""},null,{"$f":"IF('Points to check data'!N8=\"\",\"\",'Points to check data'!N8)","v":""},null,null,null,null,null,null,null,null,null,"Pass",null,null,1,null,null,null,null,null,null,null,null,null,null,null,null,null,null,null,null,null,null,null,null,null,null,null,null,null,null,null,null,null,null,null,null,null,null,null,0]
[null,null,null,null,null,{"$f":"IF('Points to check data'!M9=\"\",\"\",CONCATENATE(\"5.\",'Points to check data'!M9))","v":""},null,{"$f":"IF('Points to check data'!N9=\"\",\"\",'Points to check data'!N9)","v":""},null,null,null,null,null,null,null,null,null,"Pass",null,null,1,null,null,null,null,null,null,null,null,null,null,null,null,null,null,null,null,null,null,null,null,null,null,null,null,null,null,null,null,null,null,null,null,null,null,null,0]
[null,null,null,null,null,{"$f":"IF('Points to check data'!M10=\"\",\"\",CONCATENATE(\"5.\",'Points to check data'!M10))","v":""},null,{"$f":"IF('Points to check data'!N10=\"\",\"\",'Points to check data'!N10)","v":""},null,null,null,null,null,null,null,null,null,"Pass",null,null,1,null,null,null,null,null,null,null,null,null,null,null,null,null,null,null,null,null,null,null,null,null,null,null,null,null,null,null,null,null,null,null,null,null,null,null,0]
[null,null,null,null,null,{"$f":"IF('Points to check data'!M11=\"\",\"\",CONCATENATE(\"5.\",'Points to check data'!M11))","v":""},null,{"$f":"IF('Points to check data'!N11=\"\",\"\",'Points to check data'!N11)","v":""},null,null,null,null,null,null,null,null,null,"Pass",null,null,1,null,null,null,null,null,null,null,null,null,null,null,null,null,null,null,null,null,null,null,null,null,null,null,null,null,null,null,null,null,null,null,null,null,null,null,0]
[null,null,null,null,null,{"$f":"IF('Points to check data'!M12=\"\",\"\",CONCATENATE(\"5.\",'Points to check data'!M12))","v":""},null,{"$f":"IF('Points to check data'!N12=\"\",\"\",'Points to check data'!N12)","v":""},null,null,null,null,null,null,null,null,null,"Pass",null,null,1,null,null,null,null,null,null,null,null,null,null,null,null,null,null,null,null,null,null,null,null,null,null,null,null,null,null,null,null,null,null,null,null,null,null,null,0]
[null,null,null,null,null,{"$f":"IF('Points to check data'!M13=\"\",\"\",CONCATENATE(\"5.\",'Points to check data'!M13))","v":""},null,{"$f":"IF('Points to check data'!N13=\"\",\"\",'Points to check data'!N13)","v":""},null,null,null,null,null,null,null,null,null,"Pass",null,null,1,null,null,null,null,null,null,null,null,null,null,null,null,null,null,null,null,null,null,null,null,null,null,null,null,null,null,null,null,null,null,null,null,null,null,null,0]
[null,null,null,null,null,{"$f":"IF('Points to check data'!M14=\"\",\"\",CONCATENATE(\"5.\",'Points to check data'!M14))","v":""},null,{"$f":"IF('Points to check data'!N14=\"\",\"\",'Points to check data'!N14)","v":""},null,null,null,null,null,null,null,null,null,"Pass",null,null,1,null,null,null,null,null,null,null,null,null,null,null,null,null,null,null,null,null,null,null,null,null,null,null,null,null,null,null,null,null,null,null,null,null,null,null,0]
[null,null,null,null,null,{"$f":"IF('Points to check data'!M15=\"\",\"\",CONCATENATE(\"5.\",'Points to check data'!M15))","v":""},null,{"$f":"IF('Points to check data'!N15=\"\",\"\",'Points to check data'!N15)","v":""},null,null,null,null,null,null,null,null,null,"Pass",null,null,1,null,null,null,null,null,null,null,null,null,null,null,null,null,null,null,null,null,null,null,null,null,null,null,null,null,null,null,null,null,null,null,null,null,null,null,0]
[null,null,null,null,null,{"$f":"IF('Points to check data'!M16=\"\",\"\",CONCATENATE(\"5.\",'Points to check data'!M16))","v":""},null,{"$f":"IF('Points to check data'!N16=\"\",\"\",'Points to check data'!N16)","v":""},null,null,null,null,null,null,null,null,null,"Pass",null,null,1,null,null,null,null,null,null,null,null,null,null,null,null,null,null,null,null,null,null,null,null,null,null,null,null,null,null,null,null,null,null,null,null,null,null,null,0]
[null,null,null,null,null,{"$f":"IF('Points to check data'!M17=\"\",\"\",CONCATENATE(\"5.\",'Points to check data'!M17))","v":""},null,{"$f":"IF('Points to check data'!N17=\"\",\"\",'Points to check data'!N17)","v":""},null,null,null,null,null,null,null,null,null,"Pass",null,null,1,null,null,null,null,null,null,null,null,null,null,null,null,null,null,null,null,null,null,null,null,null,null,null,null,null,null,null,null,null,null,null,null,null,null,null,0]
[null,null,null,null,null,{"$f":"IF('Points to check data'!M18=\"\",\"\",CONCATENATE(\"5.\",'Points to check data'!M18))","v":""},null,{"$f":"IF('Points to check data'!N18=\"\",\"\",'Points to check data'!N18)","v":""},null,null,null,null,null,null,null,null,null,"Pass",null,null,1,null,null,null,null,null,null,null,null,null,null,null,null,null,null,null,null,null,null,null,null,null,null,null,null,null,null,null,null,null,null,null,null,null,null,null,0]
[null,null,null,null,null,{"$f":"IF('Points to check data'!M19=\"\",\"\",CONCATENATE(\"5.\",'Points to check data'!M19))","v":""},null,{"$f":"IF('Points to check data'!N19=\"\",\"\",'Points to check data'!N19)","v":""},null,null,null,null,null,null,null,null,null,"Pass",null,null,1,null,null,null,null,null,null,null,null,null,null,null,null,null,null,null,null,null,null,null,null,null,null,null,null,null,null,null,null,null,null,null,null,null,null,null,0]
[null,null,null,null,null,{"$f":"IF('Points to check data'!M20=\"\",\"\",CONCATENATE(\"5.\",'Points to check data'!M20))","v":""},null,{"$f":"IF('Points to check data'!N20=\"\",\"\",'Points to check data'!N20)","v":""},null,null,null,null,null,null,null,null,null,"Pass",null,null,1,null,null,null,null,null,null,null,null,null,null,null,null,null,null,null,null,null,null,null,null,null,null,null,null,null,null,null,null,null,null,null,null,null,null,null,0]
[]
[null,"General comments",null,null,null,null,null,null,null,null,null,null,null,null,null,null,null,null,null,null,null,null,null,null,null,null,null,null,null,null,null,null,null,null,null,null,null,null,null,null,null,null,null,null,null,null,null,null,null,null,null,null,null,null,null,null,0,"a\na\na\na"]
[]
[null,"Sealed bag",null,null,null,null,null,"Size",null,"Color",null,"Qty",null,"Problems (Dx, Cx, Mx)",null,null,null,"Size",null,"Color",null,"Qty",null,"Problems (Dx, Cx, Mx)",null,null,null,"Size",null,"Color",null,"Qty",null,"Problems (Dx, Cx, Mx)"]
[]
[null,"Tracking number / Seal number"]

{"sheet":"Barcodescan","index":2,"n_rows":317,"n_cols":58,"rows_kept":317,"cut":false,"hidden":false,"merged":[[5,36,7,41],[6,1,7,3],[6,4,7,5],[6,6,7,12],[6,13,7,19],[6,20,7,26],[6,27,7,33],[0,1,3,33],[5,1,5,5],[5,6,5,11],[5,12,5,16],[5,17,5,22],[5,23,5,27],[5,28,5,33],[10,13,10,19],[10,20,10,26],[10,27,10,33],[11,1,11,3],[11,4,11,5],[11,6,11,12],[11,13,11,19],[11,20,11,26],[11,27,11,33],[8,36,10,42],[9,1,9,3],[9,4,9,5],[9,6,9,12],[9,13,9,19],[9,20,9,26],[9,27,9,33],[10,1,10,3],[10,4,10,5],[10,6,10,12],[8,1,8,3],[8,4,8,5],[8,6,8,12],[8,13,8,19],[8,20,8,26],[8,27,8,33],[14,1,14,3],[14,4,14,5],[14,6,14,12],[14,13,14,19],[14,20,14,26],[14,27,14,33],[13,1,13,3],[13,4,13,5],[13,6,13,12],[13,13,13,19],[13,20,13,26],[13,27,13,33],[11,36,11,37],[12,1,12,3],[12,4,12,5],[12,6,12,12],[12,13,12,19],[12,20,12,26],[12,27,12,33],[17,1,17,3],[17,4,17,5],[17,6,17,12],[17,13,17,19],[17,20,17,26],[17,27,17,33],[16,1,16,3],[16,4,16,5],[16,6,16,12],[16,13,16,19],[16,20,16,26],[16,27,16,33],[15,1,15,3],[15,4,15,5],[15,6,15,12],[15,13,15,19],[15,20,15,26],[15,27,15,33],[20,1,20,3],[20,4,20,5],[20,6,20,12],[20,13,20,19],[20,20,20,26],[20,27,20,33],[19,1,19,3],[19,4,19,5],[19,6,19,12],[19,13,19,19],[19,20,19,26],[19,27,19,33],[18,1,18,3],[18,4,18,5],[18,6,18,12],[18,13,18,19],[18,20,18,26],[18,27,18,33],[23,1,23,3],[23,4,23,5],[23,6,23,12],[23,13,23,19],[23,20,23,26],[23,27,23,33],[22,1,22,3],[22,4,22,5],[22,6,22,12],[22,13,22,19],[22,20,22,26],[22,27,22,33],[21,1,21,3],[21,4,21,5],[21,6,21,12],[21,13,21,19],[21,20,21,26],[21,27,21,33],[26,1,26,3],[26,4,26,5],[26,6,26,12],[26,13,26,19],[26,20,26,26],[26,27,26,33],[25,1,25,3],[25,4,25,5],[25,6,25,12],[25,13,25,19],[25,20,25,26],[25,27,25,33],[24,1,24,3],[24,4,24,5],[24,6,24,12],[24,13,24,19],[24,20,24,26],[24,27,24,33],[29,1,29,3],[29,4,29,5],[29,6,29,12],[29,13,29,19],[29,20,29,26],[29,27,29,33],[28,1,28,3],[28,4,28,5],[28,6,28,12],[28,13,28,19],[28,20,28,26],[28,27,28,33],[27,1,27,3],[27,4,27,5],[27,6,27,12],[27,13,27,19],[27,20,27,26],[27,27,27,33],[32,1,32,3],[32,4,32,5],[32,6,32,12],[32,13,32,19],[32,20,32,26],[32,27,32,33],[31,1,31,3],[31,4,31,5],[31,6,31,12],[31,13,31,19],[31,20,31,26],[31,27,31,33],[30,1,30,3],[30,4,30,5],[30,6,30,12],[30,13,30,19],[30,20,30,26],[30,27,30,33],[35,1,35,3],[35,4,35,5],[35,6,35,12],[35,13,35,19],[35,20,35,26],[35,27,35,33],[34,1,34,3],[34,4,34,5],[34,6,34,12],[34,13,34,19],[34,20,34,26],[34,27,34,33],[33,1,33,3],[33,4,33,5],[33,6,33,12],[33,13,33,19],[33,20,33,26],[33,27,33,33],[38,1,38,3],[38,4,38,5],[38,6,38,12],[38,13,38,19],[38,20,38,26],[38,27,38,33],[37,1,37,3],[37,4,37,5],[37,6,37,12],[37,13,37,19],[37,20,37,26],[37,27,37,33],[36,1,36,3],[36,4,36,5],[36,6,36,12],[36,13,36,19],[36,20,36,26],[36,27,36,33],[41,1,41,3],[41,4,41,5],[41,6,41,12],[41,13,41,19],[41,20,41,26],[41,27,41,33],[40,1,40,3],[40,4,40,5],[40,6,40,12],[40,13,40,19],[40,20,40,26],[40,27,40,33],[39,1,39,3],[39,4,39,5],[39,6,39,12],[39,13,39,19],[39,20,39,26],[39,27,39,33],[44,1,44,3],[44,4,44,5],[44,6,44,12],[44,13,44,19],[44,20,44,26],[44,27,44,33],[43,1,43,3],[43,4,43,5],[43,6,43,12],[43,13,43,19],[43,20,43,26],[43,27,43,33],[42,1,42,3],[42,4,42,5],[42,6,42,12],[42,13,42,19],[42,20,42,26],[42,27,42,33],[47,1,47,3],[47,4,47,5],[47,6,47,12],[47,13,47,19],[47,20,47,26],[47,27,47,33],[46,1,46,3],[46,4,46,5],[46,6,46,12],[46,13,46,19],[46,20,46,26],[46,27,46,33],[45,1,45,3],[45,4,45,5],[45,6,45,12],[45,13,45,19],[45,20,45,26],[45,27,45,33],[56,1,56,3],[56,4,56,5],[56,6,56,12],[56,13,56,19],[56,20,56,26],[56,27,56,33],[54,1,55,3],[54,4,55,5],[54,6,55,12],[54,13,55,19],[54,20,55,26],[54,27,55,33],[48,1,51,33],[53,1,53,5],[53,6,53,11],[53,12,53,16],[53,17,53,22],[53,23,53,27],[53,28,53,33],[59,1,59,3],[59,4,59,5],[59,6,59,12],[59,13,59,19],[59,20,59,26],[59,27,59,33],[58,1,58,3],[58,4,58,5],[58,6,58,12],[58,13,58,19],[58,20,58,26],[58,27,58,33],[57,1,57,3],[57,4,57,5],[57,6,57,12],[57,13,57,19],[57,20,57,26],[57,27,57,33],[62,1,62,3],[62,4,62,5],[62,6,62,12],[62,13,62,19],[62,20,62,26],[62,27,62,33],[61,1,61,3],[61,4,61,5],[61,6,61,12],[61,13,61,19],[61,20,61,26],[61,27,61,33],[60,1,60,3],[60,4,60,5],[60,6,60,12],[60,13,60,19],[60,20,60,26],[60,27,60,33],[65,1,65,3],[65,4,65,5],[65,6,65,12],[65,13,65,19],[65,20,65,26],[65,27,65,33],[64,1,64,3],[64,4,64,5],[64,6,64,12],[64,13,64,19],[64,20,64,26],[64,27,64,33],[63,1,63,3],[63,4,63,5],[63,6,63,12],[63,13,63,19],[63,20,63,26],[63,27,63,33],[68,1,68,3],[68,4,68,5],[68,6,68,12],[68,13,68,19],[68,20,68,26],[68,27,68,33],[67,1,67,3],[67,4,67,5],[67,6,67,12],[67,13,67,19],[67,20,67,26],[67,27,67,33],[66,1,66,3],[66,4,66,5],[66,6,66,12],[66,13,66,19],[66,20,66,26],[66,27,66,33],[71,1,71,3],[71,4,71,5],[71,6,71,12],[71,13,71,19],[71,20,71,26],[71,27,71,33],[70,1,70,3],[70,4,70,5],[70,6,70,12],[70,13,70,19],[70,20,70,26],[70,27,70,33],[69,1,69,3],[69,4,69,5],[69,6,69,12],[69,13,69,19],[69,20,69,26],[69,27,69,33],[74,1,74,3],[74,4,74,5],[74,6,74,12],[74,13,74,19],[74,20,74,26],[74,27,74,33],[73,1,73,3],[73,4,73,5],[73,6,73,12],[73,13,73,19],[73,20,73,26],[73,27,73,33],[72,1,72,3],[72,4,72,5],[72,6,72,12],[72,13,72,19],[72,20,72,26],[72,27,72,33],[77,1,77,3],[77,4,77,5],[77,6,77,12],[77,13,77,19],[77,20,77,26],[77,27,77,33],[76,1,76,3],[76,4,76,5],[76,6,76,12],[76,13,76,19],[76,20,76,26],[76,27,76,33],[75,1,75,3],[75,4,75,5],[75,6,75,12],[75,13,75,19],[75,20,75,26],[75,27,75,33],[80,1,80,3],[80,4,80,5],[80,6,80,12],[80,13,80,19],[80,20,80,26],[80,27,80,33],[79,1,79,3],[79,4,79,5],[79,6,79,12],[79,13,79,19],[79,20,79,26],[79,27,79,33],[78,1,78,3],[78,4,78,5],[78,6,78,12],[78,13,78,19],[78,20,78,26],[78,27,78,33],[83,1,83,3],[83,4,83,5],[83,6,83,12],[83,13,83,19],[83,20,83,26],[83,27,83,33],[82,1,82,3],[82,4,82,5],[82,6,82,12],[82,13,82,19],[82,20,82,26],[82,27,82,33],[81,1,81,3],[81,4,81,5],[81,6,81,12],[81,13,81,19],[81,20,81,26],[81,27,81,33],[86,1,86,3],[86,4,86,5],[86,6,86,12],[86,13,86,19],[86,20,86,26],[86,27,86,33],[85,1,85,3],[85,4,85,5],[85,6,85,12],[85,13,85,19],[85,20,85,26],[85,27,85,33],[84,1,84,3],[84,4,84,5],[84,6,84,12],[84,13,84,19],[84,20,84,26],[84,27,84,33],[89,1,89,3],[89,4,89,5],[89,6,89,12],[89,13,89,19],[89,20,89,26],[89,27,89,33],[88,1,88,3],[88,4,88,5],[88,6,88,12],[88,13,88,19],[88,20,88,26],[88,27,88,33],[87,1,87,3],[87,4,87,5],[87,6,87,12],[87,13,87,19],[87,20,87,26],[87,27,87,33],[92,1,92,3],[92,4,92,5],[92,6,92,12],[92,13,92,19],[92,20,92,26],[92,27,92,33],[91,1,91,3],[91,4,91,5],[91,6,91,12],[91,13,91,19],[91,20,91,26],[91,27,91,33],[90,1,90,3],[90,4,90,5],[90,6,90,12],[90,13,90,19],[90,20,90,26],[90,27,90,33],[95,1,95,3],[95,4,95,5],[95,6,95,12],[95,13,95,19],[95,20,95,26],[95,27,95,33],[94,1,94,3],[94,4,94,5],[94,6,94,12],[94,13,94,19],[94,20,94,26],[94,27,94,33],[93,1,93,3],[93,4,93,5],[93,6,93,12],[93,13,93,19],[93,20,93,26],[93,27,93,33],[104,1,104,3],[104,4,104,5],[104,6,104,12],[104,13,104,19],[104,20,104,26],[104,27,104,33],[102,1,103,3],[102,4,103,5],[102,6,103,12],[102,13,103,19],[102,20,103,26],[102,27,103,33],[96,1,99,33],[101,1,101,5],[101,6,101,11],[101,12,101,16],[101,17,101,22],[101,23,101,27],[101,28,101,33],[107,1,107,3],[107,4,107,5],[107,6,107,12],[107,13,107,19],[107,20,107,26],[107,27,107,33],[106,1,106,3],[106,4,106,5],[106,6,106,12],[106,13,106,19],[106,20,106,26],[106,27,106,33],[105,1,105,3],[105,4,105,5],[105,6,105,12],[105,13,105,19],[105,20,105,26],[105,27,105,33],[110,1,110,3],[110,4,110,5],[110,6,110,12],[110,13,110,19],[110,20,110,26],[110,27,110,33],[109,1,109,3],[109,4,109,5],[109,6,109,12],[109,13,109,19],[109,20,109,26],[109,27,109,33],[108,1,108,3],[108,4,108,5],[108,6,108,12],[108,13,108,19],[108,20,108,26],[108,27,108,33],[113,1,113,3],[113,4,113,5],[113,6,113,12],[113,13,113,19],[113,20,113,26],[113,27,113,33],[112,1,112,3],[112,4,112,5],[112,6,112,12],[112,13,112,19],[112,20,112,26],[112,27,112,33],[111,1,111,3],[111,4,111,5],[111,6,111,12],[111,13,111,19],[111,20,111,26],[111,27,111,33],[116,1,116,3],[116,4,116,5],[116,6,116,12],[116,13,116,19],[116,20,116,26],[116,27,116,33],[115,1,115,3],[115,4,115,5],[115,6,115,12],[115,13,115,19],[115,20,115,26],[115,27,115,33],[114,1,114,3],[114,4,114,5],[114,6,114,12],[114,13,114,19],[114,20,114,26],[114,27,114,33],[119,1,119,3],[119,4,119,5],[119,6,119,12],[119,13,119,19],[119,20,119,26],[119,27,119,33],[118,1,118,3],[118,4,118,5],[118,6,118,12],[118,13,118,19],[118,20,118,26],[118,27,118,33],[117,1,117,3],[117,4,117,5],[117,6,117,12],[117,13,117,19],[117,20,117,26],[117,27,117,33],[122,1,122,3],[122,4,122,5],[122,6,122,12],[122,13,122,19],[122,20,122,26],[122,27,122,33],[121,1,121,3],[121,4,121,5],[121,6,121,12],[121,13,121,19],[121,20,121,26],[121,27,121,33],[120,1,120,3],[120,4,120,5],[120,6,120,12],[120,13,120,19],[120,20,120,26],[120,27,120,33],[125,1,125,3],[125,4,125,5],[125,6,125,12],[125,13,125,19],[125,20,125,26],[125,27,125,33],[124,1,124,3],[124,4,124,5],[124,6,124,12],[124,13,124,19],[124,20,124,26],[124,27,124,33],[123,1,123,3],[123,4,123,5],[123,6,123,12],[123,13,123,19],[123,20,123,26],[123,27,123,33],[128,1,128,3],[128,4,128,5],[128,6,128,12],[128,13,128,19],[128,20,128,26],[128,27,128,33],[127,1,127,3],[127,4,127,5],[127,6,127,12],[127,13,127,19],[127,20,127,26],[127,27,127,33],[126,1,126,3],[126,4,126,5],[126,6,126,12],[126,13,126,19],[126,20,126,26],[126,27,126,33],[131,1,131,3],[131,4,131,5],[131,6,131,12],[131,13,131,19],[131,20,131,26],[131,27,131,33],[130,1,130,3],[130,4,130,5],[130,6,130,12],[130,13,130,19],[130,20,130,26],[130,27,130,33],[129,1,129,3],[129,4,129,5],[129,6,129,12],[129,13,129,19],[129,20,129,26],[129,27,129,33],[134,1,134,3],[134,4,134,5],[134,6,134,12],[134,13,134,19],[134,20,134,26],[134,27,134,33],[133,1,133,3],[133,4,133,5],[133,6,133,12],[133,13,133,19],[133,20,133,26],[133,27,133,33],[132,1,132,3],[132,4,132,5],[132,6,132,12],[132,13,132,19],[132,20,132,26],[132,27,132,33],[137,1,137,3],[137,4,137,5],[137,6,137,12],[137,13,137,19],[137,20,137,26],[137,27,137,33],[136,1,136,3],[136,4,136,5],[136,6,136,12],[136,13,136,19],[136,20,136,26],[136,27,136,33],[135,1,135,3],[135,4,135,5],[135,6,135,12],[135,13,135,19],[135,20,135,26],[135,27,135,33],[140,1,140,3],[140,4,140,5],[140,6,140,12],[140,13,140,19],[140,20,140,26],[140,27,140,33],[139,1,139,3],[139,4,139,5],[139,6,139,12],[139,13,139,19],[139,20,139,26],[139,27,139,33],[138,1,138,3],[138,4,138,5],[138,6,138,12],[138,13,138,19],[138,20,138,26],[138,27,138,33],[143,1,143,3],[143,4,143,5],[143,6,143,12],[143,13,143,19],[143,20,143,26],[143,27,143,33],[142,1,142,3],[142,4,142,5],[142,6,142,12],[142,13,142,19],[142,20,142,26],[142,27,142,33],[141,1,141,3],[141,4,141,5],[141,6,141,12],[141,13,141,19],[141,20,141,26],[141,27,141,33],[152,1,152,3],[152,4,152,5],[152,6,152,12],[152,13,152,19],[152,20,152,26],[152,27,152,33],[150,1,151,3],[150,4,151,5],[150,6,151,12],[150,13,151,19],[150,20,151,26],[150,27,151,33],[144,1,147,33],[149,1,149,5],[149,6,149,11],[149,12,149,16],[149,17,149,22],[149,23,149,27],[149,28,149,33],[155,1,155,3],[155,4,155,5],[155,6,155,12],[155,13,155,19],[155,20,155,26],[155,27,155,33],[154,1,154,3],[154,4,154,5],[154,6,154,12],[154,13,154,19],[154,20,154,26],[154,27,154,33],[153,1,153,3],[153,4,153,5],[153,6,153,12],[153,13,153,19],[153,20,153,26],[153,27,153,33],[158,1,158,3],[158,4,158,5],[158,6,158,12],[158,13,158,19],[158,20,158,26],[158,27,158,33],[157,1,157,3],[157,4,157,5],[157,6,157,12],[157,13,157,19],[157,20,157,26],[157,27,157,33],[156,1,156,3],[156,4,156,5],[156,6,156,12],[156,13,156,19],[156,20,156,26],[156,27,156,33],[161,1,161,3],[161,4,161,5],[161,6,161,12],[161,13,161,19],[161,20,161,26],[161,27,161,33],[160,1,160,3],[160,4,160,5],[160,6,160,12],[160,13,160,19],[160,20,160,26],[160,27,160,33],[159,1,159,3],[159,4,159,5],[159,6,159,12],[159,13,159,19],[159,20,159,26],[159,27,159,33],[164,1,164,3],[164,4,164,5],[164,6,164,12],[164,13,164,19],[164,20,164,26],[164,27,164,33],[163,1,163,3],[163,4,163,5],[163,6,163,12],[163,13,163,19],[163,20,163,26],[163,27,163,33],[162,1,162,3],[162,4,162,5],[162,6,162,12],[162,13,162,19],[162,20,162,26],[162,27,162,33],[167,1,167,3],[167,4,167,5],[167,6,167,12],[167,13,167,19],[167,20,167,26],[167,27,167,33],[166,1,166,3],[166,4,166,5],[166,6,166,12],[166,13,166,19],[166,20,166,26],[166,27,166,33],[165,1,165,3],[165,4,165,5],[165,6,165,12],[165,13,165,19],[165,20,165,26],[165,27,165,33],[170,1,170,3],[170,4,170,5],[170,6,170,12],[170,13,170,19],[170,20,170,26],[170,27,170,33],[169,1,169,3],[169,4,169,5],[169,6,169,12],[169,13,169,19],[169,20,169,26],[169,27,169,33],[168,1,168,3],[168,4,168,5],[168,6,168,12],[168,13,168,19],[168,20,168,26],[168,27,168,33],[173,1,173,3],[173,4,173,5],[173,6,173,12],[173,13,173,19],[173,20,173,26],[173,27,173,33],[172,1,172,3],[172,4,172,5],[172,6,172,12],[172,13,172,19],[172,20,172,26],[172,27,172,33],[171,1,171,3],[171,4,171,5],[171,6,171,12],[171,13,171,19],[171,20,171,26],[171,27,171,33],[176,1,176,3],[176,4,176,5],[176,6,176,12],[176,13,176,19],[176,20,176,26],[176,27,176,33],[175,1,175,3],[175,4,175,5],[175,6,175,12],[175,13,175,19],[175,20,175,26],[175,27,175,33],[174,1,174,3],[174,4,174,5],[174,6,174,12],[174,13,174,19],[174,20,174,26],[174,27,174,33],[179,1,179,3],[179,4,179,5],[179,6,179,12],[179,13,179,19],[179,20,179,26],[179,27,179,33],[178,1,178,3],[178,4,178,5],[178,6,178,12],[178,13,178,19],[178,20,178,26],[178,27,178,33],[177,1,177,3],[177,4,177,5],[177,6,177,12],[177,13,177,19],[177,20,177,26],[177,27,177,33],[182,1,182,3],[182,4,182,5],[182,6,182,12],[182,13,182,19],[182,20,182,26],[182,27,182,33],[181,1,181,3],[181,4,181,5],[181,6,181,12],[181,13,181,19],[181,20,181,26],[181,27,181,33],[180,1,180,3],[180,4,180,5],[180,6,180,12],[180,13,180,19],[180,20,180,26],[180,27,180,33],[185,1,185,3],[185,4,185,5],[185,6,185,12],[185,13,185,19],[185,20,185,26],[185,27,185,33],[184,1,184,3],[184,4,184,5],[184,6,184,12],[184,13,184,19],[184,20,184,26],[184,27,184,33],[183,1,183,3],[183,4,183,5],[183,6,183,12],[183,13,183,19],[183,20,183,26],[183,27,183,33],[188,1,188,3],[188,4,188,5],[188,6,188,12],[188,13,188,19],[188,20,188,26],[188,27,188,33],[187,1,187,3],[187,4,187,5],[187,6,187,12],[187,13,187,19],[187,20,187,26],[187,27,187,33],[186,1,186,3],[186,4,186,5],[186,6,186,12],[186,13,186,19],[186,20,186,26],[186,27,186,33],[191,1,191,3],[191,4,191,5],[191,6,191,12]],"merged_total":1774,"flags":["merged_cut"]}
[null,"4.Barcode scan",null,null,null,null,null,null,null,null,null,null,null,null,null,null,null,null,null,null,null,null,null,null,null,null,null,null,null,null,null,null,null,null,null,null,null,null,null,null,null,null,null,null,null,null,"Pass"]
[null,null,null,null,null,null,null,null,null,null,null,null,null,null,null,null,null,null,null,null,null,null,null,null,null,null,null,null,null,null,null,null,null,null,null,null,null,null,null,null,null,null,null,null,null,null,"Rev"]
[null,null,null,null,null,null,null,null,null,null,null,null,null,null,null,null,null,null,null,null,null,null,null,null,null,null,null,null,null,null,null,null,null,null,null,null,null,null,null,null,null,null,null,null,null,null,"Fail"]
[null,null,null,null,null,null,null,null,null,null,null,null,null,null,null,null,null,null,null,null,null,null,null,null,null,null,null,null,null,null,null,null,null,null,null,null,null,null,null,null,null,null,null,null,null,null,"N/A"]
[]
[null,"Ref",null,null,null,null,{"$f":"Picking!J9","v":""},null,null,null,null,null,"Item Description",null,null,null,null,{"$f":"Picking!J11","v":""},null,null,null,null,null,"Customer",null,null,null,null,{"$f":"Picking!J6","v":""},null,null,null,null,null,null,null,"scan with “note pad” software then copy and paste barcode number here"]
[null,"Color",null,null,"Size",null,"Barcode number on document or sample",null,null,null,null,null,null,"Price tag barcode number",null,null,null,null,null,null,"Carelabel barcode number",null,null,null,null,null,null,"Polybag sticker barcode number"]
[]
[null,null,null,null,null,null,null,null,null,null,null,null,null,null,null,null,null,null,null,null,null,null,null,null,null,null,null,null,null,null,null,null,null,null,null,null,"IF NO INFO OF BARCODE NUMBER ON DOCUMENT OR SAMPLE WRITE THE PRICETAG BARECODE NUMBER ON COLUMN \"BARCODE NUMBER ON DOCUMENT OR SAMPLE\" TP AVOID RED FONT",null,null,null,null,null,null,null,null,null,null,null,null,null,null,null,null,null,null,null,{"$f":"V9","v":0},"a\na\na"]
[null,null,null,null,null,null,null,null,null,null,null,null,null,null,null,null,null,null,null,null,null,null,null,null,null,null,null,null,null,null,null,null,null,null,null,null,null,null,null,null,null,null,null,null,null,null,null,null,null,null,null,null,null,null,null,null,{"$f":"V10","v":0},"a\na\na"]
[null,null,null,null,null,null,null,null,null,null,null,null,null,null,null,null,null,null,null,null,null,null,null,null,null,null,null,null,null,null,null,null,null,null,null,null,null,null,null,null,null,null,null,null,null,null,null,null,null,null,null,null,null,null,null,null,0,"a\na\na"]
[null,null,null,null,null,null,null,null,null,null,null,null,null,null,null,null,null,null,null,null,null,null,null,null,null,null,null,null,null,null,null,null,null,null,null,null,null,null,null,null,null,null,null,null,null,null,null,null,null,null,null,null,null,null,null,null,0,"a\na\na"]
[null,null,null,null,null,null,null,null,null,null,null,null,null,null,null,null,null,null,null,null,null,null,null,null,null,null,null,null,null,null,null,null,null,null,null,null,null,null,null,null,null,null,null,null,null,null,null,null,null,null,null,null,null,null,null,null,0,"a\na\na"]
[null,null,null,null,null,null,null,null,null,null,null,null,null,null,null,null,null,null,null,null,null,null,null,null,null,null,null,null,null,null,null,null,null,null,null,null,null,null,null,null,null,null,null,null,null,null,null,null,null,null,null,null,null,null,null,null,0,"a\na\na"]
[null,null,null,null,null,null,null,null,null,null,null,null,null,null,null,null,null,null,null,null,null,null,null,null,null,null,null,null,null,null,null,null,null,null,null,null,null,null,null,null,null,null,null,null,null,null,null,null,null,null,null,null,null,null,null,null,0,"a\na\na"]
[null,null,null,null,null,null,null,null,null,null,null,null,null,null,null,null,null,null,null,null,null,null,null,null,null,null,null,null,null,null,null,null,null,null,null,null,null,null,null,null,null,null,null,null,null,null,null,null,null,null,null,null,null,null,null,null,0,"a\na\na"]
[null,null,null,null,null,null,null,null,null,null,null,null,null,null,null,null,null,null,null,null,null,null,null,null,null,null,null,null,null,null,null,null,null,null,null,null,null,null,null,null,null,null,null,null,null,null,null,null,null,null,null,null,null,null,null,null,0,"a\na\na"]
[null,null,null,null,null,null,null,null,null,null,null,null,null,null,null,null,null,null,null,null,null,null,null,null,null,null,null,null,null,null,null,null,null,null,null,null,null,null,null,null,null,null,null,null,null,null,null,null,null,null,null,null,null,null,null,null,0,"a\na\na"]
[null,null,null,null,null,null,null,null,null,null,null,null,null,null,null,null,null,null,null,null,null,null,null,null,null,null,null,null,null,null,null,null,null,null,null,null,null,null,null,null,null,null,null,null,null,null,null,null,null,null,null,null,null,null,null,null,0,"a\na\na"]
[null,null,null,null,null,null,null,null,null,null,null,null,null,null,null,null,null,null,null,null,null,null,null,null,null,null,null,null,null,null,null,null,null,null,null,null,null,null,null,null,null,null,null,null,null,null,null,null,null,null,null,null,null,null,null,null,0,"a\na\na"]
[null,null,null,null,null,null,null,null,null,null,null,null,null,null,null,null,null,null,null,null,null,null,null,null,null,null,null,null,null,null,null,null,null,null,null,null,null,null,null,null,null,null,null,null,null,null,null,null,null,null,null,null,null,null,null,null,0,"a\na\na"]
[null,null,null,null,null,null,null,null,null,null,null,null,null,null,null,null,null,null,null,null,null,null,null,null,null,null,null,null,null,null,null,null,null,null,null,null,null,null,null,null,null,null,null,null,null,null,null,null,null,null,null,null,null,null,null,null,0,"a\na\na"]
[null,null,null,null,null,null,null,null,null,null,null,null,null,null,null,null,null,null,null,null,null,null,null,null,null,null,null,null,null,null,null,null,null,null,null,null,null,null,null,null,null,null,null,null,null,null,null,null,null,null,null,null,null,null,null,null,0,"a\na\na"]
[null,null,null,null,null,null,null,null,null,null,null,null,null,null,null,null,null,null,null,null,null,null,null,null,null,null,null,null,null,null,null,null,null,null,null,null,null,null,null,null,null,null,null,null,null,null,null,null,null,null,null,null,null,null,null,null,0,"a\na\na"]
[null,null,null,null,null,null,null,null,null,null,null,null,null,null,null,null,null,null,null,null,null,null,null,null,null,null,null,null,null,null,null,null,null,null,null,null,null,null,null,null,null,null,null,null,null,null,null,null,null,null,null,null,null,null,null,null,0,"a\na\na"]
[null,null,null,null,null,null,null,null,null,null,null,null,null,null,null,null,null,null,null,null,null,null,null,null,null,null,null,null,null,null,null,null,null,null,null,null,null,null,null,null,null,null,null,null,null,null,null,null,null,null,null,null,null,null,null,null,0,"a\na\na"]
[null,null,null,null,null,null,null,null,null,null,null,null,null,null,null,null,null,null,null,null,null,null,null,null,null,null,null,null,null,null,null,null,null,null,null,null,null,null,null,null,null,null,null,null,null,null,null,null,null,null,null,null,null,null,null,null,0,"a\na\na"]
[null,null,null,null,null,null,null,null,null,null,null,null,null,null,null,null,null,null,null,null,null,null,null,null,null,null,null,null,null,null,null,null,null,null,null,null,null,null,null,null,null,null,null,null,null,null,null,null,null,null,null,null,null,null,null,null,0,"a\na\na"]
[null,null,null,null,null,null,null,null,null,null,null,null,null,null,null,null,null,null,null,null,null,null,null,null,null,null,null,null,null,null,null,null,null,null,null,null,null,null,null,null,null,null,null,null,null,null,null,null,null,null,null,null,null,null,null,null,0]
[]
[]
[]
[]
[]
[]
[]
[]
[]
[]
[]
[]
[]
[]
[]
[]
[]
[]
[]
[null,"4.Barcode scan",null,null,null,null,null,null,null,null,null,null,null,null,null,null,null,null,null,null,null,null,null,null,null,null,null,null,null,null,null,null,null,null,null,null,null,null,null,null,null,null,null,null,null,null,"Pass"]
[null,null,null,null,null,null,null,null,null,null,null,null,null,null,null,null,null,null,null,null,null,null,null,null,null,null,null,null,null,null,null,null,null,null,null,null,null,null,null,null,null,null,null,null,null,null,"Rev"]
[null,null,null,null,null,null,null,null,null,null,null,null,null,null,null,null,null,null,null,null,null,null,null,null,null,null,null,null,null,null,null,null,null,null,null,null,null,null,null,null,null,null,null,null,null,null,"Fail"]
[null,null,null,null,null,null,null,null,null,null,null,null,null,null,null,null,null,null,null,null,null,null,null,null,null,null,null,null,null,null,null,null,null,null,null,null,null,null,null,null,null,null,null,null,null,null,"N/A"]
[]
[null,"Ref",null,null,null,null,{"$f":"[3]Picking!J57","v":0},null,null,null,null,null,"Item Description",null,null,null,null,{"$f":"[3]Picking!J59","v":0},null,null,null,null,null,"Customer",null,null,null,null,{"$f":"[3]Picking!J54","v":0}]
[null,"Color",null,null,"Size",null,"Barcode number on customer document",null,null,null,null,null,null,"Price tag barcode number",null,null,null,null,null,null,"Carelabel barcode number",null,null,null,null,null,null,"Polybag sticker barcode number"]
[]
[null,null,null,null,null,null,null,null,null,null,null,null,null,null,null,null,null,null,null,null,null,null,null,null,null,null,null,null,null,null,null,null,null,null,null,null,null,null,null,null,null,null,null,null,null,null,null,null,null,null,null,null,null,null,null,null,{"$f":"V57","v":0},"a\na\na"]
[null,null,null,null,null,null,null,null,null,null,null,null,null,null,null,null,null,null,null,null,null,null,null,null,null,null,null,null,null,null,null,null,null,null,null,null,null,null,null,null,null,null,null,null,null,null,null,null,null,null,null,null,null,null,null,null,{"$f":"V58","v":0},"a\na\na"]
[null,null,null,null,null,null,null,null,null,null,null,null,null,null,null,null,null,null,null,null,null,null,null,null,null,null,null,null,null,null,null,null,null,null,null,null,null,null,null,null,null,null,null,null,null,null,null,null,null,null,null,null,null,null,null,null,0,"a\na\na"]
[null,null,null,null,null,null,null,null,null,null,null,null,null,null,null,null,null,null,null,null,null,null,null,null,null,null,null,null,null,null,null,null,null,null,null,null,null,null,null,null,null,null,null,null,null,null,null,null,null,null,null,null,null,null,null,null,0,"a\na\na"]
[null,null,null,null,null,null,null,null,null,null,null,null,null,null,null,null,null,null,null,null,null,null,null,null,null,null,null,null,null,null,null,null,null,null,null,null,null,null,null,null,null,null,null,null,null,null,null,null,null,null,null,null,null,null,null,null,0,"a\na\na"]
[null,null,null,null,null,null,null,null,null,null,null,null,null,null,null,null,null,null,null,null,null,null,null,null,null,null,null,null,null,null,null,null,null,null,null,null,null,null,null,null,null,null,null,null,null,null,null,null,null,null,null,null,null,null,null,null,0,"a\na\na"]
[null,null,null,null,null,null,null,null,null,null,null,null,null,null,null,null,null,null,null,null,null,null,null,null,null,null,null,null,null,null,null,null,null,null,null,null,null,null,null,null,null,null,null,null,null,null,null,null,null,null,null,null,null,null,null,null,0,"a\na\na"]
[null,null,null,null,null,null,null,null,null,null,null,null,null,null,null,null,null,null,null,null,null,null,null,null,null,null,null,null,null,null,null,null,null,null,null,null,null,null,null,null,null,null,null,null,null,null,null,null,null,null,null,null,null,null,null,null,0,"a\na\na"]
[null,null,null,null,null,null,null,null,null,null,null,null,null,null,null,null,null,null,null,null,null,null,null,null,null,null,null,null,null,null,null,null,null,null,null,null,null,null,null,null,null,null,null,null,null,null,null,null,null,null,null,null,null,null,null,null,0,"a\na\na"]
[null,null,null,null,null,null,null,null,null,null,null,null,null,null,null,null,null,null,null,null,null,null,null,null,null,null,null,null,null,null,null,null,null,null,null,null,null,null,null,null,null,null,null,null,null,null,null,null,null,null,null,null,null,null,null,null,0,"a\na\na"]
[null,null,null,null,null,null,null,null,null,null,null,null,null,null,null,null,null,null,null,null,null,null,null,null,null,null,null,null,null,null,null,null,null,null,null,null,null,null,null,null,null,null,null,null,null,null,null,null,null,null,null,null,null,null,null,null,0,"a\na\na"]
[null,null,null,null,null,null,null,null,null,null,null,null,null,null,null,null,null,null,null,null,null,null,null,null,null,null,null,null,null,null,null,null,null,null,null,null,null,null,null,null,null,null,null,null,null,null,null,null,null,null,null,null,null,null,null,null,0,"a\na\na"]
[null,null,null,null,null,null,null,null,null,null,null,null,null,null,null,null,null,null,null,null,null,null,null,null,null,null,null,null,null,null,null,null,null,null,null,null,null,null,null,null,null,null,null,null,null,null,null,null,null,null,null,null,null,null,null,null,0,"a\na\na"]
[null,null,null,null,null,null,null,null,null,null,null,null,null,null,null,null,null,null,null,null,null,null,null,null,null,null,null,null,null,null,null,null,null,null,null,null,null,null,null,null,null,null,null,null,null,null,null,null,null,null,null,null,null,null,null,null,0,"a\na\na"]
[null,null,null,null,null,null,null,null,null,null,null,null,null,null,null,null,null,null,null,null,null,null,null,null,null,null,null,null,null,null,null,null,null,null,null,null,null,null,null,null,null,null,null,null,null,null,null,null,null,null,null,null,null,null,null,null,0,"a\na\na"]
[null,null,null,null,null,null,null,null,null,null,null,null,null,null,null,null,null,null,null,null,null,null,null,null,null,null,null,null,null,null,null,null,null,null,null,null,null,null,null,null,null,null,null,null,null,null,null,null,null,null,null,null,null,null,null,null,0,"a\na\na"]
[null,null,null,null,null,null,null,null,null,null,null,null,null,null,null,null,null,null,null,null,null,null,null,null,null,null,null,null,null,null,null,null,null,null,null,null,null,null,null,null,null,null,null,null,null,null,null,null,null,null,null,null,null,null,null,null,0,"a\na\na"]
[null,null,null,null,null,null,null,null,null,null,null,null,null,null,null,null,null,null,null,null,null,null,null,null,null,null,null,null,null,null,null,null,null,null,null,null,null,null,null,null,null,null,null,null,null,null,null,null,null,null,null,null,null,null,null,null,0,"a\na\na"]
[null,null,null,null,null,null,null,null,null,null,null,null,null,null,null,null,null,null,null,null,null,null,null,null,null,null,null,null,null,null,null,null,null,null,null,null,null,null,null,null,null,null,null,null,null,null,null,null,null,null,null,null,null,null,null,null,0,"a\na\na"]
[null,null,null,null,null,null,null,null,null,null,null,null,null,null,null,null,null,null,null,null,null,null,null,null,null,null,null,null,null,null,null,null,null,null,null,null,null,null,null,null,null,null,null,null,null,null,null,null,null,null,null,null,null,null,null,null,0,"a\na\na"]
[null,null,null,null,null,null,null,null,null,null,null,null,null,null,null,null,null,null,null,null,null,null,null,null,null,null,null,null,null,null,null,null,null,null,null,null,null,null,null,null,null,null,null,null,null,null,null,null,null,null,null,null,null,null,null,null,0]
[]
[]
[]
[]
[]
[]
[]
[]
[]
[]
[]
[]
[]
[]
[]
[]
[]
[]
[]
[null,"4.Barcode scan",null,null,null,null,null,null,null,null,null,null,null,null,null,null,null,null,null,null,null,null,null,null,null,null,null,null,null,null,null,null,null,null,null,null,null,null,null,null,null,null,null,null,null,null,"Pass"]
[null,null,null,null,null,null,null,null,null,null,null,null,null,null,null,null,null,null,null,null,null,null,null,null,null,null,null,null,null,null,null,null,null,null,null,null,null,null,null,null,null,null,null,null,null,null,"Rev"]
[null,null,null,null,null,null,null,null,null,null,null,null,null,null,null,null,null,null,null,null,null,null,null,null,null,null,null,null,null,null,null,null,null,null,null,null,null,null,null,null,null,null,null,null,null,null,"Fail"]
[null,null,null,null,null,null,null,null,null,null,null,null,null,null,null,null,null,null,null,null,null,null,null,null,null,null,null,null,null,null,null,null,null,null,null,null,null,null,null,null,null,null,null,null,null,null,"N/A"]
[]
[null,"Ref",null,null,null,null,{"$f":"[3]Picking!J105","v":0},null,null,null,null,null,"Item Description",null,null,null,null,{"$f":"[3]Picking!J107","v":0},null,null,null,null,null,"Customer",null,null,null,null,{"$f":"[3]Picking!J102","v":0}]
[null,"Color",null,null,"Size",null,"Barcode number on customer document",null,null,null,null,null,null,"Price tag barcode number",null,null,null,null,null,null,"Carelabel barcode number",null,null,null,null,null,null,"Polybag sticker barcode number"]
[]
[null,null,null,null,null,null,null,null,null,null,null,null,null,null,null,null,null,null,null,null,null,null,null,null,null,null,null,null,null,null,null,null,null,null,null,null,null,null,null,null,null,null,null,null,null,null,null,null,null,null,null,null,null,null,null,null,{"$f":"V105","v":0},"a\na\na"]
[null,null,null,null,null,null,null,null,null,null,null,null,null,null,null,null,null,null,null,null,null,null,null,null,null,null,null,null,null,null,null,null,null,null,null,null,null,null,null,null,null,null,null,null,null,null,null,null,null,null,null,null,null,null,null,null,{"$f":"V106","v":0},"a\na\na"]
[null,null,null,null,null,null,null,null,null,null,null,null,null,null,null,null,null,null,null,null,null,null,null,null,null,null,null,null,null,null,null,null,null,null,null,null,null,null,null,null,null,null,null,null,null,null,null,null,null,null,null,null,null,null,null,null,0,"a\na\na"]
[null,null,null,null,null,null,null,null,null,null,null,null,null,null,null,null,null,null,null,null,null,null,null,null,null,null,null,null,null,null,null,null,null,null,null,null,null,null,null,null,null,null,null,null,null,null,null,null,null,null,null,null,null,null,null,null,0,"a\na\na"]
[null,null,null,null,null,null,null,null,null,null,null,null,null,null,null,null,null,null,null,null,null,null,null,null,null,null,null,null,null,null,null,null,null,null,null,null,null,null,null,null,null,null,null,null,null,null,null,null,null,null,null,null,null,null,null,null,0,"a\na\na"]
[null,null,null,null,null,null,null,null,null,null,null,null,null,null,null,null,null,null,null,null,null,null,null,null,null,null,null,null,null,null,null,null,null,null,null,null,null,null,null,null,null,null,null,null,null,null,null,null,null,null,null,null,null,null,null,null,0,"a\na\na"]
[null,null,null,null,null,null,null,null,null,null,null,null,null,null,null,null,null,null,null,null,null,null,null,null,null,null,null,null,null,null,null,null,null,null,null,null,null,null,null,null,null,null,null,null,null,null,null,null,null,null,null,null,null,null,null,null,0,"a\na\na"]
[null,null,null,null,null,null,null,null,null,null,null,null,null,null,null,null,null,null,null,null,null,null,null,null,null,null,null,null,null,null,null,null,null,null,null,null,null,null,null,null,null,null,null,null,null,null,null,null,null,null,null,null,null,null,null,null,0,"a\na\na"]
[null,null,null,null,null,null,null,null,null,null,null,null,null,null,null,null,null,null,null,null,null,null,null,null,null,null,null,null,null,null,null,null,null,null,null,null,null,null,null,null,null,null,null,null,null,null,null,null,null,null,null,null,null,null,null,null,0,"a\na\na"]
[null,null,null,null,null,null,null,null,null,null,null,null,null,null,null,null,null,null,null,null,null,null,null,null,null,null,null,null,null,null,null,null,null,null,null,null,null,null,null,null,null,null,null,null,null,null,null,null,null,null,null,null,null,null,null,null,0,"a\na\na"]
[null,null,null,null,null,null,null,null,null,null,null,null,null,null,null,null,null,null,null,null,null,null,null,null,null,null,null,null,null,null,null,null,null,null,null,null,null,null,null,null,null,null,null,null,null,null,null,null,null,null,null,null,null,null,null,null,0,"a\na\na"]
[null,null,null,null,null,null,null,null,null,null,null,null,null,null,null,null,null,null,null,null,null,null,null,null,null,null,null,null,null,null,null,null,null,null,null,null,null,null,null,null,null,null,null,null,null,null,null,null,null,null,null,null,null,null,null,null,0,"a\na\na"]
[null,null,null,null,null,null,null,null,null,null,null,null,null,null,null,null,null,null,null,null,null,null,null,null,null,null,null,null,null,null,null,null,null,null,null,null,null,null,null,null,null,null,null,null,null,null,null,null,null,null,null,null,null,null,null,null,0,"a\na\na"]
[null,null,null,null,null,null,null,null,null,null,null,null,null,null,null,null,null,null,null,null,null,null,null,null,null,null,null,null,null,null,null,null,null,null,null,null,null,null,null,null,null,null,null,null,null,null,null,null,null,null,null,null,null,null,null,null,0,"a\na\na"]
[null,null,null,null,null,null,null,null,null,null,null,null,null,null,null,null,null,null,null,null,null,null,null,null,null,null,null,null,null,null,null,null,null,null,null,null,null,null,null,null,null,null,null,null,null,null,null,null,null,null,null,null,null,null,null,null,0,"a\na\na"]
[null,null,null,null,null,null,null,null,null,null,null,null,null,null,null,null,null,null,null,null,null,null,null,null,null,null,null,null,null,null,null,null,null,null,null,null,null,null,null,null,null,null,null,null,null,null,null,null,null,null,null,null,null,null,null,null,0,"a\na\na"]
[null,null,null,null,null,null,null,null,null,null,null,null,null,null,null,null,null,null,null,null,null,null,null,null,null,null,null,null,null,null,null,null,null,null,null,null,null,null,null,null,null,null,null,null,null,null,null,null,null,null,null,null,null,null,null,null,0,"a\na\na"]
[null,null,null,null,null,null,null,null,null,null,null,null,null,null,null,null,null,null,null,null,null,null,null,null,null,null,null,null,null,null,null,null,null,null,null,null,null,null,null,null,null,null,null,null,null,null,null,null,null,null,null,null,null,null,null,null,0,"a\na\na"]
[null,null,null,null,null,null,null,null,null,null,null,null,null,null,null,null,null,null,null,null,null,null,null,null,null,null,null,null,null,null,null,null,null,null,null,null,null,null,null,null,null,null,null,null,null,null,null,null,null,null,null,null,null,null,null,null,0,"a\na\na"]
[null,null,null,null,null,null,null,null,null,null,null,null,null,null,null,null,null,null,null,null,null,null,null,null,null,null,null,null,null,null,null,null,null,null,null,null,null,null,null,null,null,null,null,null,null,null,null,null,null,null,null,null,null,null,null,null,0,"a\na\na"]
[null,null,null,null,null,null,null,null,null,null,null,null,null,null,null,null,null,null,null,null,null,null,null,null,null,null,null,null,null,null,null,null,null,null,null,null,null,null,null,null,null,null,null,null,null,null,null,null,null,null,null,null,null,null,null,null,0]
[]
[]
[]
[]
[]
[]
[]
[]
[]
[]
[]
[]
[]
[]
[]
[]
[]
[]
[]
[null,"4.Barcode scan",null,null,null,null,null,null,null,null,null,null,null,null,null,null,null,null,null,null,null,null,null,null,null,null,null,null,null,null,null,null,null,null,null,null,null,null,null,null,null,null,null,null,null,null,"Pass"]
[null,null,null,null,null,null,null,null,null,null,null,null,null,null,null,null,null,null,null,null,null,null,null,null,null,null,null,null,null,null,null,null,null,null,null,null,null,null,null,null,null,null,null,null,null,null,"Rev"]
[null,null,null,null,null,null,null,null,null,null,null,null,null,null,null,null,null,null,null,null,null,null,null,null,null,null,null,null,null,null,null,null,null,null,null,null,null,null,null,null,null,null,null,null,null,null,"Fail"]
[null,null,null,null,null,null,null,null,null,null,null,null,null,null,null,null,null,null,null,null,null,null,null,null,null,null,null,null,null,null,null,null,null,null,null,null,null,null,null,null,null,null,null,null,null,null,"N/A"]
[]
[null,"Ref",null,null,null,null,{"$f":"[3]Picking!J153","v":0},null,null,null,null,null,"Item Description",null,null,null,null,{"$f":"[3]Picking!J155","v":0},null,null,null,null,null,"Customer",null,null,null,null,{"$f":"[3]Picking!J150","v":0}]
[null,"Color",null,null,"Size",null,"Barcode number on customer document",null,null,null,null,null,null,"Price tag barcode number",null,null,null,null,null,null,"Carelabel barcode number",null,null,null,null,null,null,"Polybag sticker barcode number"]
[]
[null,null,null,null,null,null,null,null,null,null,null,null,null,null,null,null,null,null,null,null,null,null,null,null,null,null,null,null,null,null,null,null,null,null,null,null,null,null,null,null,null,null,null,null,null,null,null,null,null,null,null,null,null,null,null,null,{"$f":"V153","v":0},"a\na\na"]
[null,null,null,null,null,null,null,null,null,null,null,null,null,null,null,null,null,null,null,null,null,null,null,null,null,null,null,null,null,null,null,null,null,null,null,null,null,null,null,null,null,null,null,null,null,null,null,null,null,null,null,null,null,null,null,null,{"$f":"V154","v":0},"a\na\na"]
[null,null,null,null,null,null,null,null,null,null,null,null,null,null,null,null,null,null,null,null,null,null,null,null,null,null,null,null,null,null,null,null,null,null,null,null,null,null,null,null,null,null,null,null,null,null,null,null,null,null,null,null,null,null,null,null,0,"a\na\na"]
[null,null,null,null,null,null,null,null,null,null,null,null,null,null,null,null,null,null,null,null,null,null,null,null,null,null,null,null,null,null,null,null,null,null,null,null,null,null,null,null,null,null,null,null,null,null,null,null,null,null,null,null,null,null,null,null,0,"a\na\na"]
[null,null,null,null,null,null,null,null,null,null,null,null,null,null,null,null,null,null,null,null,null,null,null,null,null,null,null,null,null,null,null,null,null,null,null,null,null,null,null,null,null,null,null,null,null,null,null,null,null,null,null,null,null,null,null,null,0,"a\na\na"]
[null,null,null,null,null,null,null,null,null,null,null,null,null,null,null,null,null,null,null,null,null,null,null,null,null,null,null,null,null,null,null,null,null,null,null,null,null,null,null,null,null,null,null,null,null,null,null,null,null,null,null,null,null,null,null,null,0,"a\na\na"]
[null,null,null,null,null,null,null,null,null,null,null,null,null,null,null,null,null,null,null,null,null,null,null,null,null,null,null,null,null,null,null,null,null,null,null,null,null,null,null,null,null,null,null,null,null,null,null,null,null,null,null,null,null,null,null,null,0,"a\na\na"]
[null,null,null,null,null,null,null,null,null,null,null,null,null,null,null,null,null,null,null,null,null,null,null,null,null,null,null,null,null,null,null,null,null,null,null,null,null,null,null,null,null,null,null,null,null,null,null,null,null,null,null,null,null,null,null,null,0,"a\na\na"]
[null,null,null,null,null,null,null,null,null,null,null,null,null,null,null,null,null,null,null,null,null,null,null,null,null,null,null,null,null,null,null,null,null,null,null,null,null,null,null,null,null,null,null,null,null,null,null,null,null,null,null,null,null,null,null,null,0,"a\na\na"]
[null,null,null,null,null,null,null,null,null,null,null,null,null,null,null,null,null,null,null,null,null,null,null,null,null,null,null,null,null,null,null,null,null,null,null,null,null,null,null,null,null,null,null,null,null,null,null,null,null,null,null,null,null,null,null,null,0,"a\na\na"]
[null,null,null,null,null,null,null,null,null,null,null,null,null,null,null,null,null,null,null,null,null,null,null,null,null,null,null,null,null,null,null,null,null,null,null,null,null,null,null,null,null,null,null,null,null,null,null,null,null,null,null,null,null,null,null,null,0,"a\na\na"]
[null,null,null,null,null,null,null,null,null,null,null,null,null,null,null,null,null,null,null,null,null,null,null,null,null,null,null,null,null,null,null,null,null,null,null,null,null,null,null,null,null,null,null,null,null,null,null,null,null,null,null,null,null,null,null,null,0,"a\na\na"]
[null,null,null,null,null,null,null,null,null,null,null,null,null,null,null,null,null,null,null,null,null,null,null,null,null,null,null,null,null,null,null,null,null,null,null,null,null,null,null,null,null,null,null,null,null,null,null,null,null,null,null,null,null,null,null,null,0,"a\na\na"]
[null,null,null,null,null,null,null,null,null,null,null,null,null,null,null,null,null,null,null,null,null,null,null,null,null,null,null,null,null,null,null,null,null,null,null,null,null,null,null,null,null,null,null,null,null,null,null,null,null,null,null,null,null,null,null,null,0,"a\na\na"]
[null,null,null,null,null,null,null,null,null,null,null,null,null,null,null,null,null,null,null,null,null,null,null,null,null,null,null,null,null,null,null,null,null,null,null,null,null,null,null,null,null,null,null,null,null,null,null,null,null,null,null,null,null,null,null,null,0,"a\na\na"]
[null,null,null,null,null,null,null,null,null,null,null,null,null,null,null,null,null,null,null,null,null,null,null,null,null,null,null,null,null,null,null,null,null,null,null,null,null,null,null,null,null,null,null,null,null,null,null,null,null,null,null,null,null,null,null,null,0,"a\na\na"]
[null,null,null,null,null,null,null,null,null,null,null,null,null,null,null,null,null,null,null,null,null,null,null,null,null,null,null,null,null,null,null,null,null,null,null,null,null,null,null,null,null,null,null,null,null,null,null,null,null,null,null,null,null,null,null,null,0,"a\na\na"]
[null,null,null,null,null,null,null,null,null,null,null,null,null,null,null,null,null,null,null,null,null,null,null,null,null,null,null,null,null,null,null,null,null,null,null,null,null,null,null,null,null,null,null,null,null,null,null,null,null,null,null,null,null,null,null,null,0,"a\na\na"]
[null,null,null,null,null,null,null,null,null,null,null,null,null,null,null,null,null,null,null,null,null,null,null,null,null,null,null,null,null,null,null,null,null,null,null,null,null,null,null,null,null,null,null,null,null,null,null,null,null,null,null,null,null,null,null,null,0,"a\na\na"]
[null,null,null,null,null,null,null,null,null,null,null,null,null,null,null,null,null,null,null,null,null,null,null,null,null,null,null,null,null,null,null,null,null,null,null,null,null,null,null,null,null,null,null,null,null,null,null,null,null,null,null,null,null,null,null,null,0,"a\na\na"]
[null,null,null,null,null,null,null,null,null,null,null,null,null,null,null,null,null,null,null,null,null,null,null,null,null,null,null,null,null,null,null,null,null,null,null,null,null,null,null,null,null,null,null,null,null,null,null,null,null,null,null,null,null,null,null,null,0]
[]
[]
[]
[]
[]
[]
[]
[]
[]
[]
[]
[]
[]
[]
[]
[]
[]
[]
[]
[null,"4.Barcode scan",null,null,null,null,null,null,null,null,null,null,null,null,null,null,null,null,null,null,null,null,null,null,null,null,null,null,null,null,null,null,null,null,null,null,null,null,null,null,null,null,null,null,null,null,"Pass"]
[null,null,null,null,null,null,null,null,null,null,null,null,null,null,null,null,null,null,null,null,null,null,null,null,null,null,null,null,null,null,null,null,null,null,null,null,null,null,null,null,null,null,null,null,null,null,"Rev"]
[null,null,null,null,null,null,null,null,null,null,null,null,null,null,null,null,null,null,null,null,null,null,null,null,null,null,null,null,null,null,null,null,null,null,null,null,null,null,null,null,null,null,null,null,null,null,"Fail"]
[null,null,null,null,null,null,null,null,null,null,null,null,null,null,null,null,null,null,null,null,null,null,null,null,null,null,null,null,null,null,null,null,null,null,null,null,null,null,null,null,null,null,null,null,null,null,"N/A"]
[]
[null,"Ref",null,null,null,null,{"$f":"[3]Picking!J201","v":0},null,null,null,null,null,"Item Description",null,null,null,null,{"$f":"[3]Picking!J203","v":0},null,null,null,null,null,"Customer",null,null,null,null,{"$f":"[3]Picking!J198","v":0}]
[null,"Color",null,null,"Size",null,"Barcode number on customer document",null,null,null,null,null,null,"Price tag barcode number",null,null,null,null,null,null,"Carelabel barcode number",null,null,null,null,null,null,"Polybag sticker barcode number"]
[]
[null,null,null,null,null,null,null,null,null,null,null,null,null,null,null,null,null,null,null,null,null,null,null,null,null,null,null,null,null,null,null,null,null,null,null,null,null,null,null,null,null,null,null,null,null,null,null,null,null,null,null,null,null,null,null,null,{"$f":"V201","v":0},"a\na\na"]
[null,null,null,null,null,null,null,null,null,null,null,null,null,null,null,null,null,null,null,null,null,null,null,null,null,null,null,null,null,null,null,null,null,null,null,null,null,null,null,null,null,null,null,null,null,null,null,null,null,null,null,null,null,null,null,null,{"$f":"V202","v":0},"a\na\na"]
[null,null,null,null,null,null,null,null,null,null,null,null,null,null,null,null,null,null,null,null,null,null,null,null,null,null,null,null,null,null,null,null,null,null,null,null,null,null,null,null,null,null,null,null,null,null,null,null,null,null,null,null,null,null,null,null,0,"a\na\na"]
[null,null,null,null,null,null,null,null,null,null,null,null,null,null,null,null,null,null,null,null,null,null,null,null,null,null,null,null,null,null,null,null,null,null,null,null,null,null,null,null,null,null,null,null,null,null,null,null,null,null,null,null,null,null,null,null,0,"a\na\na"]
[null,null,null,null,null,null,null,null,null,null,null,null,null,null,null,null,null,null,null,null,null,null,null,null,null,null,null,null,null,null,null,null,null,null,null,null,null,null,null,null,null,null,null,null,null,null,null,null,null,null,null,null,null,null,null,null,0,"a\na\na"]
[null,null,null,null,null,null,null,null,null,null,null,null,null,null,null,null,null,null,null,null,null,null,null,null,null,null,null,null,null,null,null,null,null,null,null,null,null,null,null,null,null,null,null,null,null,null,null,null,null,null,null,null,null,null,null,null,0,"a\na\na"]
[null,null,null,null,null,null,null,null,null,null,null,null,null,null,null,null,null,null,null,null,null,null,null,null,null,null,null,null,null,null,null,null,null,null,null,null,null,null,null,null,null,null,null,null,null,null,null,null,null,null,null,null,null,null,null,null,0,"a\na\na"]
[null,null,null,null,null,null,null,null,null,null,null,null,null,null,null,null,null,null,null,null,null,null,null,null,null,null,null,null,null,null,null,null,null,null,null,null,null,null,null,null,null,null,null,null,null,null,null,null,null,null,null,null,null,null,null,null,0,"a\na\na"]
[null,null,null,null,null,null,null,null,null,null,null,null,null,null,null,null,null,null,null,null,null,null,null,null,null,null,null,null,null,null,null,null,null,null,null,null,null,null,null,null,null,null,null,null,null,null,null,null,null,null,null,null,null,null,null,null,0,"a\na\na"]
[null,null,null,null,null,null,null,null,null,null,null,null,null,null,null,null,null,null,null,null,null,null,null,null,null,null,null,null,null,null,null,null,null,null,null,null,null,null,null,null,null,null,null,null,null,null,null,null,null,null,null,null,null,null,null,null,0,"a\na\na"]
[null,null,null,null,null,null,null,null,null,null,null,null,null,null,null,null,null,null,null,null,null,null,null,null,null,null,null,null,null,null,null,null,null,null,null,null,null,null,null,null,null,null,null,null,null,null,null,null,null,null,null,null,null,null,null,null,0,"a\na\na"]
[null,null,null,null,null,null,null,null,null,null,null,null,null,null,null,null,null,null,null,null,null,null,null,null,null,null,null,null,null,null,null,null,null,null,null,null,null,null,null,null,null,null,null,null,null,null,null,null,null,null,null,null,null,null,null,null,0,"a\na\na"]
[null,null,null,null,null,null,null,null,null,null,null,null,null,null,null,null,null,null,null,null,null,null,null,null,null,null,null,null,null,null,null,null,null,null,null,null,null,null,null,null,null,null,null,null,null,null,null,null,null,null,null,null,null,null,null,null,0,"a\na\na"]
[null,null,null,null,null,null,null,null,null,null,null,null,null,null,null,null,null,null,null,null,null,null,null,null,null,null,null,null,null,null,null,null,null,null,null,null,null,null,null,null,null,null,null,null,null,null,null,null,null,null,null,null,null,null,null,null,0,"a\na\na"]
[null,null,null,null,null,null,null,null,null,null,null,null,null,null,null,null,null,null,null,null,null,null,null,null,null,null,null,null,null,null,null,null,null,null,null,null,null,null,null,null,null,null,null,null,null,null,null,null,null,null,null,null,null,null,null,null,0,"a\na\na"]
[null,null,null,null,null,null,null,null,null,null,null,null,null,null,null,null,null,null,null,null,null,null,null,null,null,null,null,null,null,null,null,null,null,null,null,null,null,null,null,null,null,null,null,null,null,null,null,null,null,null,null,null,null,null,null,null,0,"a\na\na"]
[null,null,null,null,null,null,null,null,null,null,null,null,null,null,null,null,null,null,null,null,null,null,null,null,null,null,null,null,null,null,null,null,null,null,null,null,null,null,null,null,null,null,null,null,null,null,null,null,null,null,null,null,null,null,null,null,0,"a\na\na"]
[null,null,null,null,null,null,null,null,null,null,null,null,null,null,null,null,null,null,null,null,null,null,null,null,null,null,null,null,null,null,null,null,null,null,null,null,null,null,null,null,null,null,null,null,null,null,null,null,null,null,null,null,null,null,null,null,0,"a\na\na"]
[null,null,null,null,null,null,null,null,null,null,null,null,null,null,null,null,null,null,null,null,null,null,null,null,null,null,null,null,null,null,null,null,null,null,null,null,null,null,null,null,null,null,null,null,null,null,null,null,null,null,null,null,null,null,null,null,0,"a\na\na"]
[null,null,null,null,null,null,null,null,null,null,null,null,null,null,null,null,null,null,null,null,null,null,null,null,null,null,null,null,null,null,null,null,null,null,null,null,null,null,null,null,null,null,null,null,null,null,null,null,null,null,null,null,null,null,null,null,0,"a\na\na"]
[null,null,null,null,null,null,null,null,null,null,null,null,null,null,null,null,null,null,null,null,null,null,null,null,null,null,null,null,null,null,null,null,null,null,null,null,null,null,null,null,null,null,null,null,null,null,null,null,null,null,null,null,null,null,null,null,0]
[]
[]
[]
[]
[]
[]
[]
[]
[]
[]
[]
[]
[]
[]
[]
[]
[]
[]
[]
[null,"4.Barcode scan",null,null,null,null,null,null,null,null,null,null,null,null,null,null,null,null,null,null,null,null,null,null,null,null,null,null,null,null,null,null,null,null,null,null,null,null,null,null,null,null,null,null,null,null,"Pass"]
[null,null,null,null,null,null,null,null,null,null,null,null,null,null,null,null,null,null,null,null,null,null,null,null,null,null,null,null,null,null,null,null,null,null,null,null,null,null,null,null,null,null,null,null,null,null,"Rev"]
[null,null,null,null,null,null,null,null,null,null,null,null,null,null,null,null,null,null,null,null,null,null,null,null,null,null,null,null,null,null,null,null,null,null,null,null,null,null,null,null,null,null,null,null,null,null,"Fail"]
[null,null,null,null,null,null,null,null,null,null,null,null,null,null,null,null,null,null,null,null,null,null,null,null,null,null,null,null,null,null,null,null,null,null,null,null,null,null,null,null,null,null,null,null,null,null,"N/A"]
[]
[null,"Ref",null,null,null,null,{"$f":"[3]Picking!J249","v":0},null,null,null,null,null,"Item Description",null,null,null,null,{"$f":"[3]Picking!J251","v":0},null,null,null,null,null,"Customer",null,null,null,null,{"$f":"[3]Picking!J246","v":0}]
[null,"Color",null,null,"Size",null,"Barcode number on customer document",null,null,null,null,null,null,"Price tag barcode number",null,null,null,null,null,null,"Carelabel barcode number",null,null,null,null,null,null,"Polybag sticker barcode number"]
[]
[null,null,null,null,null,null,null,null,null,null,null,null,null,null,null,null,null,null,null,null,null,null,null,null,null,null,null,null,null,null,null,null,null,null,null,null,null,null,null,null,null,null,null,null,null,null,null,null,null,null,null,null,null,null,null,null,{"$f":"V249","v":0},"a\na\na"]
[null,null,null,null,null,null,null,null,null,null,null,null,null,null,null,null,null,null,null,null,null,null,null,null,null,null,null,null,null,null,null,null,null,null,null,null,null,null,null,null,null,null,null,null,null,null,null,null,null,null,null,null,null,null,null,null,{"$f":"V250","v":0},"a\na\na"]
[null,null,null,null,null,null,null,null,null,null,null,null,null,null,null,null,null,null,null,null,null,null,null,null,null,null,null,null,null,null,null,null,null,null,null,null,null,null,null,null,null,null,null,null,null,null,null,null,null,null,null,null,null,null,null,null,0,"a\na\na"]
[null,null,null,null,null,null,null,null,null,null,null,null,null,null,null,null,null,null,null,null,null,null,null,null,null,null,null,null,null,null,null,null,null,null,null,null,null,null,null,null,null,null,null,null,null,null,null,null,null,null,null,null,null,null,null,null,0,"a\na\na"]
[null,null,null,null,null,null,null,null,null,null,null,null,null,null,null,null,null,null,null,null,null,null,null,null,null,null,null,null,null,null,null,null,null,null,null,null,null,null,null,null,null,null,null,null,null,null,null,null,null,null,null,null,null,null,null,null,0,"a\na\na"]
[null,null,null,null,null,null,null,null,null,null,null,null,null,null,null,null,null,null,null,null,null,null,null,null,null,null,null,null,null,null,null,null,null,null,null,null,null,null,null,null,null,null,null,null,null,null,null,null,null,null,null,null,null,null,null,null,0,"a\na\na"]
[null,null,null,null,null,null,null,null,null,null,null,null,null,null,null,null,null,null,null,null,null,null,null,null,null,null,null,null,null,null,null,null,null,null,null,null,null,null,null,null,null,null,null,null,null,null,null,null,null,null,null,null,null,null,null,null,0,"a\na\na"]
[null,null,null,null,null,null,null,null,null,null,null,null,null,null,null,null,null,null,null,null,null,null,null,null,null,null,null,null,null,null,null,null,null,null,null,null,null,null,null,null,null,null,null,null,null,null,null,null,null,null,null,null,null,null,null,null,0,"a\na\na"]
[null,null,null,null,null,null,null,null,null,null,null,null,null,null,null,null,null,null,null,null,null,null,null,null,null,null,null,null,null,null,null,null,null,null,null,null,null,null,null,null,null,null,null,null,null,null,null,null,null,null,null,null,null,null,null,null,0,"a\na\na"]
[null,null,null,null,null,null,null,null,null,null,null,null,null,null,null,null,null,null,null,null,null,null,null,null,null,null,null,null,null,null,null,null,null,null,null,null,null,null,null,null,null,null,null,null,null,null,null,null,null,null,null,null,null,null,null,null,0,"a\na\na"]
[null,null,null,null,null,null,null,null,null,null,null,null,null,null,null,null,null,null,null,null,null,null,null,null,null,null,null,null,null,null,null,null,null,null,null,null,null,null,null,null,null,null,null,null,null,null,null,null,null,null,null,null,null,null,null,null,0,"a\na\na"]
[null,null,null,null,null,null,null,null,null,null,null,null,null,null,null,null,null,null,null,null,null,null,null,null,null,null,null,null,null,null,null,null,null,null,null,null,null,null,null,null,null,null,null,null,null,null,null,null,null,null,null,null,null,null,null,null,0,"a\na\na"]
[null,null,null,null,null,null,null,null,null,null,null,null,null,null,null,null,null,null,null,null,null,null,null,null,null,null,null,null,null,null,null,null,null,null,null,null,null,null,null,null,null,null,null,null,null,null,null,null,null,null,null,null,null,null,null,null,0,"a\na\na"]
[null,null,null,null,null,null,null,null,null,null,null,null,null,null,null,null,null,null,null,null,null,null,null,null,null,null,null,null,null,null,null,null,null,null,null,null,null,null,null,null,null,null,null,null,null,null,null,null,null,null,null,null,null,null,null,null,0,"a\na\na"]
[null,null,null,null,null,null,null,null,null,null,null,null,null,null,null,null,null,null,null,null,null,null,null,null,null,null,null,null,null,null,null,null,null,null,null,null,null,null,null,null,null,null,null,null,null,null,null,null,null,null,null,null,null,null,null,null,0,"a\na\na"]
[null,null,null,null,null,null,null,null,null,null,null,null,null,null,null,null,null,null,null,null,null,null,null,null,null,null,null,null,null,null,null,null,null,null,null,null,null,null,null,null,null,null,null,null,null,null,null,null,null,null,null,null,null,null,null,null,0,"a\na\na"]
[null,null,null,null,null,null,null,null,null,null,null,null,null,null,null,null,null,null,null,null,null,null,null,null,null,null,null,null,null,null,null,null,null,null,null,null,null,null,null,null,null,null,null,null,null,null,null,null,null,null,null,null,null,null,null,null,0,"a\na\na"]
[null,null,null,null,null,null,null,null,null,null,null,null,null,null,null,null,null,null,null,null,null,null,null,null,null,null,null,null,null,null,null,null,null,null,null,null,null,null,null,null,null,null,null,null,null,null,null,null,null,null,null,null,null,null,null,null,0,"a\na\na"]
[null,null,null,null,null,null,null,null,null,null,null,null,null,null,null,null,null,null,null,null,null,null,null,null,null,null,null,null,null,null,null,null,null,null,null,null,null,null,null,null,null,null,null,null,null,null,null,null,null,null,null,null,null,null,null,null,0,"a\na\na"]
[null,null,null,null,null,null,null,null,null,null,null,null,null,null,null,null,null,null,null,null,null,null,null,null,null,null,null,null,null,null,null,null,null,null,null,null,null,null,null,null,null,null,null,null,null,null,null,null,null,null,null,null,null,null,null,null,0,"a\na\na"]
[null,null,null,null,null,null,null,null,null,null,null,null,null,null,null,null,null,null,null,null,null,null,null,null,null,null,null,null,null,null,null,null,null,null,null,null,null,null,null,null,null,null,null,null,null,null,null,null,null,null,null,null,null,null,null,null,0]
[]
[]
[]
[]
[]
[]
[]
[]
[]
[]
[]
[]
[]
[]
[]
[]
[]
[]
[]
[null,"4.Barcode scan",null,null,null,null,null,null,null,null,null,null,null,null,null,null,null,null,null,null,null,null,null,null,null,null,null,null,null,null,null,null,null,null,null,null,null,null,null,null,null,null,null,null,null,null,"Pass"]
[null,null,null,null,null,null,null,null,null,null,null,null,null,null,null,null,null,null,null,null,null,null,null,null,null,null,null,null,null,null,null,null,null,null,null,null,null,null,null,null,null,null,null,null,null,null,"Rev"]
[null,null,null,null,null,null,null,null,null,null,null,null,null,null,null,null,null,null,null,null,null,null,null,null,null,null,null,null,null,null,null,null,null,null,null,null,null,null,null,null,null,null,null,null,null,null,"Fail"]
[null,null,null,null,null,null,null,null,null,null,null,null,null,null,null,null,null,null,null,null,null,null,null,null,null,null,null,null,null,null,null,null,null,null,null,null,null,null,null,null,null,null,null,null,null,null,"N/A"]
[]
[null,"Ref",null,null,null,null,{"$f":"[3]Picking!J297","v":0},null,null,null,null,null,"Item Description",null,null,null,null,{"$f":"[3]Picking!J299","v":0},null,null,null,null,null,"Customer",null,null,null,null,{"$f":"[3]Picking!J294","v":0}]
[null,"Color",null,null,"Size",null,"Barcode number on customer document",null,null,null,null,null,null,"Price tag barcode number",null,null,null,null,null,null,"Carelabel barcode number",null,null,null,null,null,null,"Polybag sticker barcode number"]
[]
[null,null,null,null,null,null,null,null,null,null,null,null,null,null,null,null,null,null,null,null,null,null,null,null,null,null,null,null,null,null,null,null,null,null,null,null,null,null,null,null,null,null,null,null,null,null,null,null,null,null,null,null,null,null,null,null,{"$f":"V297","v":0},"a\na\na"]
[null,null,null,null,null,null,null,null,null,null,null,null,null,null,null,null,null,null,null,null,null,null,null,null,null,null,null,null,null,null,null,null,null,null,null,null,null,null,null,null,null,null,null,null,null,null,null,null,null,null,null,null,null,null,null,null,{"$f":"V298","v":0},"a\na\na"]
[null,null,null,null,null,null,null,null,null,null,null,null,null,null,null,null,null,null,null,null,null,null,null,null,null,null,null,null,null,null,null,null,null,null,null,null,null,null,null,null,null,null,null,null,null,null,null,null,null,null,null,null,null,null,null,null,0,"a\na\na"]
[null,null,null,null,null,null,null,null,null,null,null,null,null,null,null,null,null,null,null,null,null,null,null,null,null,null,null,null,null,null,null,null,null,null,null,null,null,null,null,null,null,null,null,null,null,null,null,null,null,null,null,null,null,null,null,null,0,"a\na\na"]
[null,null,null,null,null,null,null,null,null,null,null,null,null,null,null,null,null,null,null,null,null,null,null,null,null,null,null,null,null,null,null,null,null,null,null,null,null,null,null,null,null,null,null,null,null,null,null,null,null,null,null,null,null,null,null,null,0,"a\na\na"]
[null,null,null,null,null,null,null,null,null,null,null,null,null,null,null,null,null,null,null,null,null,null,null,null,null,null,null,null,null,null,null,null,null,null,null,null,null,null,null,null,null,null,null,null,null,null,null,null,null,null,null,null,null,null,null,null,0,"a\na\na"]
[null,null,null,null,null,null,null,null,null,null,null,null,null,null,null,null,null,null,null,null,null,null,null,null,null,null,null,null,null,null,null,null,null,null,null,null,null,null,null,null,null,null,null,null,null,null,null,null,null,null,null,null,null,null,null,null,0,"a\na\na"]
[null,null,null,null,null,null,null,null,null,null,null,null,null,null,null,null,null,null,null,null,null,null,null,null,null,null,null,null,null,null,null,null,null,null,null,null,null,null,null,null,null,null,null,null,null,null,null,null,null,null,null,null,null,null,null,null,0,"a\na\na"]
[null,null,null,null,null,null,null,null,null,null,null,null,null,null,null,null,null,null,null,null,null,null,null,null,null,null,null,null,null,null,null,null,null,null,null,null,null,null,null,null,null,null,null,null,null,null,null,null,null,null,null,null,null,null,null,null,0,"a\na\na"]
[null,null,null,null,null,null,null,null,null,null,null,null,null,null,null,null,null,null,null,null,null,null,null,null,null,null,null,null,null,null,null,null,null,null,null,null,null,null,null,null,null,null,null,null,null,null,null,null,null,null,null,null,null,null,null,null,0,"a\na\na"]
[null,null,null,null,null,null,null,null,null,null,null,null,null,null,null,null,null,null,null,null,null,null,null,null,null,null,null,null,null,null,null,null,null,null,null,null,null,null,null,null,null,null,null,null,null,null,null,null,null,null,null,null,null,null,null,null,0,"a\na\na"]
[null,null,null,null,null,null,null,null,null,null,null,null,null,null,null,null,null,null,null,null,null,null,null,null,null,null,null,null,null,null,null,null,null,null,null,null,null,null,null,null,null,null,null,null,null,null,null,null,null,null,null,null,null,null,null,null,0,"a\na\na"]
[null,null,null,null,null,null,null,null,null,null,null,null,null,null,null,null,null,null,null,null,null,null,null,null,null,null,null,null,null,null,null,null,null,null,null,null,null,null,null,null,null,null,null,null,null,null,null,null,null,null,null,null,null,null,null,null,0,"a\na\na"]
[null,null,null,null,null,null,null,null,null,null,null,null,null,null,null,null,null,null,null,null,null,null,null,null,null,null,null,null,null,null,null,null,null,null,null,null,null,null,null,null,null,null,null,null,null,null,null,null,null,null,null,null,null,null,null,null,0,"a\na\na"]
[null,null,null,null,null,null,null,null,null,null,null,null,null,null,null,null,null,null,null,null,null,null,null,null,null,null,null,null,null,null,null,null,null,null,null,null,null,null,null,null,null,null,null,null,null,null,null,null,null,null,null,null,null,null,null,null,0,"a\na\na"]
[null,null,null,null,null,null,null,null,null,null,null,null,null,null,null,null,null,null,null,null,null,null,null,null,null,null,null,null,null,null,null,null,null,null,null,null,null,null,null,null,null,null,null,null,null,null,null,null,null,null,null,null,null,null,null,null,0,"a\na\na"]
[null,null,null,null,null,null,null,null,null,null,null,null,null,null,null,null,null,null,null,null,null,null,null,null,null,null,null,null,null,null,null,null,null,null,null,null,null,null,null,null,null,null,null,null,null,null,null,null,null,null,null,null,null,null,null,null,0,"a\na\na"]
[null,null,null,null,null,null,null,null,null,null,null,null,null,null,null,null,null,null,null,null,null,null,null,null,null,null,null,null,null,null,null,null,null,null,null,null,null,null,null,null,null,null,null,null,null,null,null,null,null,null,null,null,null,null,null,null,0,"a\na\na"]
[null,null,null,null,null,null,null,null,null,null,null,null,null,null,null,null,null,null,null,null,null,null,null,null,null,null,null,null,null,null,null,null,null,null,null,null,null,null,null,null,null,null,null,null,null,null,null,null,null,null,null,null,null,null,null,null,0,"a\na\na"]
[null,null,null,null,null,null,null,null,null,null,null,null,null,null,null,null,null,null,null,null,null,null,null,null,null,null,null,null,null,null,null,null,null,null,null,null,null,null,null,null,null,null,null,null,null,null,null,null,null,null,null,null,null,null,null,null,0,"a\na\na"]
[null,null,null,null,null,null,null,null,null,null,null,null,null,null,null,null,null,null,null,null,null,null,null,null,null,null,null,null,null,null,null,null,null,null,null,null,null,null,null,null,null,null,null,null,null,null,null,null,null,null,null,null,null,null,null,null,0]

{"sheet":"Measurements 1p_IN","index":3,"n_rows":8,"n_cols":44,"rows_kept":8,"cut":false,"hidden":false,"merged":[[6,36,6,37],[6,38,6,39],[6,40,6,41],[6,42,6,43],[6,25,6,26],[6,27,6,28],[6,31,7,31],[6,32,7,32],[6,33,7,33],[6,34,6,35],[6,16,7,16],[6,17,7,17],[6,18,7,18],[6,19,6,20],[6,21,6,22],[6,23,6,24],[5,40,5,41],[5,42,5,43],[6,1,7,1],[6,2,7,2],[6,3,7,3],[6,4,6,5],[6,6,6,7],[6,8,6,9],[6,10,6,11],[6,12,6,13],[5,23,5,24],[5,25,5,26],[5,27,5,28],[5,32,5,34],[5,35,5,37],[5,38,5,39],[0,1,4,13],[0,16,4,28],[0,31,4,43],[5,2,5,4],[5,5,5,7],[5,8,5,9],[5,10,5,11],[5,12,5,13],[5,17,5,19],[5,20,5,22]]}
[null,"3.Measurements",null,null,null,null,null,null,null,null,null,null,null,null,null,null,"3.Measurements",null,null,null,null,null,null,null,null,null,null,null,null,null,null,"3.Measurements"]
[]
[]
[]
[]
[null,"Style / Reference",{"$f":"Picking!J9","v":""},null,null,"Color",null,null,{"$f":"Report!X15","v":0},null,"Customer",null,{"$f":"Picking!J6","v":""},null,null,null,"Style / Reference",{"$f":"C6","v":""},null,null,"Color",null,null,{"$f":"I6","v":0},null,"Customer",null,{"$f":"M6","v":""},null,null,null,"Style / Reference",{"$f":"R6","v":""},null,null,"Color",null,null,{"$f":"X6","v":0},null,"Customer",null,{"$f":"AB6","v":""}]
[null,"Measure description","#","Tol","Size : ",null,"Size : ",null,"Size : ",null,"Size : ",null,"Size : ",null,null,null,"Measure description","#","Tol","Size : ",null,"Size : ",null,"Size : ",null,"Size : ",null,"Size : ",null,null,null,"Measure description","#","Tol","Size : ",null,"Size : ",null,"Size : ",null,"Size : ",null,"Size : "]
[null,null,null,null,"M1","Theor. Meas","M2","Theor. Meas","M3","Theor. Meas","M4","Theor. Meas","M5","Theor. Meas",null,null,null,null,null,"M6","Theor. Meas","M7","Theor. Meas","M8","Theor. Meas","M9","Theor. Meas","M10","Theor. Meas",null,null,null,null,null,"M11","Theor. Meas","M12","Theor. Meas","M13","Theor. Meas","M14","Theor. Meas","M15","Theor. Meas"]

{"sheet":"Measurements 1p_CM","index":4,"n_rows":8,"n_cols":44,"rows_kept":8,"cut":false,"hidden":false,"merged":[[6,36,6,37],[6,38,6,39],[6,40,6,41],[6,42,6,43],[6,25,6,26],[6,27,6,28],[6,31,7,31],[6,32,7,32],[6,33,7,33],[6,34,6,35],[6,16,7,16],[6,17,7,17],[6,18,7,18],[6,19,6,20],[6,21,6,22],[6,23,6,24],[5,40,5,41],[5,42,5,43],[6,1,7,1],[6,2,7,2],[6,3,7,3],[6,4,6,5],[6,6,6,7],[6,8,6,9],[6,10,6,11],[6,12,6,13],[5,23,5,24],[5,25,5,26],[5,27,5,28],[5,32,5,34],[5,35,5,37],[5,38,5,39],[0,1,4,13],[0,16,4,28],[0,31,4,43],[5,2,5,4],[5,5,5,7],[5,8,5,9],[5,10,5,11],[5,12,5,13],[5,17,5,19],[5,20,5,22]]}
[null,"3.Measurements",null,null,null,null,null,null,null,null,null,null,null,null,null,null,"3.Measurements",null,null,null,null,null,null,null,null,null,null,null,null,null,null,"3.Measurements"]
[]
[]
[]
[]
[null,"Style / Reference",{"$f":"Picking!J9","v":""},null,null,"Color",null,null,{"$f":"Report!X15","v":0},null,"Customer",null,{"$f":"Picking!J6","v":""},null,null,null,"Style / Reference",{"$f":"C6","v":""},null,null,"Color",null,null,{"$f":"I6","v":0},null,"Customer",null,{"$f":"M6","v":""},null,null,null,"Style / Reference",{"$f":"R6","v":""},null,null,"Color",null,null,{"$f":"X6","v":0},null,"Customer",null,{"$f":"AB6","v":""}]
[null,"Measure description","#","Tol","Size : ",null,"Size : ",null,"Size : ",null,"Size : ",null,"Size : ",null,null,null,"Measure description","#","Tol","Size : ",null,"Size : ",null,"Size : ",null,"Size : ",null,"Size : ",null,null,null,"Measure description","#","Tol","Size : ",null,"Size : ",null,"Size : ",null,"Size : ",null,"Size : "]
[null,null,null,null,"M1","Theor. Meas","M2","Theor. Meas","M3","Theor. Meas","M4","Theor. Meas","M5","Theor. Meas",null,null,null,null,null,"M6","Theor. Meas","M7","Theor. Meas","M8","Theor. Meas","M9","Theor. Meas","M10","Theor. Meas",null,null,null,null,null,"M11","Theor. Meas","M12","Theor. Meas","M13","Theor. Meas","M14","Theor. Meas","M15","Theor. Meas"]

{"sheet":"Measurements 3p_IN","index":5,"n_rows":8,"n_cols":83,"rows_kept":8,"cut":false,"hidden":false,"merged":[[6,75,6,78],[6,79,6,82],[6,58,6,61],[6,64,7,64],[6,65,7,65],[6,66,7,66],[6,67,6,70],[6,71,6,74],[6,54,6,57],[6,23,7,23],[6,24,7,24],[6,25,6,28],[6,29,6,32],[6,33,6,36],[6,37,6,40],[6,43,7,43],[6,44,7,44],[6,45,7,45],[6,46,6,49],[6,50,6,53],[5,75,5,78],[5,79,5,82],[6,1,7,1],[6,2,7,2],[6,3,7,3],[6,4,6,7],[6,8,6,11],[6,12,6,15],[6,16,6,19],[6,22,7,22],[5,50,5,53],[5,54,5,57],[5,58,5,61],[5,65,5,68],[5,69,5,70],[5,71,5,74],[5,48,5,49],[0,1,4,19],[0,22,4,40],[0,43,4,61],[0,64,4,82],[5,2,5,5],[5,6,5,7],[5,8,5,11],[5,12,5,15],[5,16,5,19],[5,23,5,26],[5,27,5,28],[5,29,5,32],[5,33,5,36],[5,37,5,40],[5,44,5,47]]}
[null,"3.Measurements",null,null,null,null,null,null,null,null,null,null,null,null,null,null,null,null,null,null,null,null,"3.Measurements",null,null,null,null,null,null,null,null,null,null,null,null,null,null,null,null,null,null,null,null,"3.Measurements",null,null,null,null,null,null,null,null,null,null,null,null,null,null,null,null,null,null,null,null,"3.Measurements"]
[]
[]
[]
[]
[null,"Style / Reference",{"$f":"Picking!J9","v":""},null,null,null,"Color",null,{"$f":"Report!X15","v":0},null,null,null,"Customer",null,null,null,{"$f":"Picking!J6","v":""},null,null,null,null,null,"Style / Reference",{"$f":"C6","v":""},null,null,null,"Color",null,{"$f":"I6","v":0},null,null,null,"Customer",null,null,null,{"$f":"Q6","v":""},null,null,null,null,null,"Style / Reference",{"$f":"X6","v":""},null,null,null,"Color",null,{"$f":"AD6","v":0},null,null,null,"Customer",null,null,null,{"$f":"AL6","v":""},null,null,null,null,null,"Style / Reference",{"$f":"AS6","v":""},null,null,null,"Color",null,{"$f":"AY6","v":0},null,null,null,"Customer",null,null,null,{"$f":"BG6","v":""}]
[null,"Measure description","#","Tol","Size : ",null,null,null,"Size : ",null,null,null,"Size : ",null,null,null,"Size : ",null,null,null,null,null,"Measure description","#","Tol","Size : ",null,null,null,"Size : ",null,null,null,"Size : ",null,null,null,"Size : ",null,null,null,null,null,"Measure description","#","Tol","Size : ",null,null,null,"Size : ",null,null,null,"Size : ",null,null,null,"Size : ",null,null,null,null,null,"Measure description","#","Tol","Size : ",null,null,null,"Size : ",null,null,null,"Size : ",null,null,null,"Size : "]
[null,null,null,null,"M1","M2","M3","Theor. Meas","M4","M5","M6","Theor. Meas","M7","M8","M9","Theor. Meas","M10","M11","M12","Theor. Meas",null,null,null,null,null,"M13","M14","M15","Theor. Meas","M16","M17","M18","Theor. Meas","M19","M20","M21","Theor. Meas","M22","M23","M24","Theor. Meas",null,null,null,null,null,"M25","M26","M27","Theor. Meas","M28","M29","M30","Theor. Meas","M31","M32","M33","Theor. Meas","M34","M35","M36","Theor. Meas",null,null,null,null,null,"M37","M38","M39","Theor. Meas","M40","M41","M42","Theor. Meas","M43","M44","M45","Theor. Meas","M46","M47","M48","Theor. Meas"]

{"sheet":"Measurements 3p_CM","index":6,"n_rows":8,"n_cols":83,"rows_kept":8,"cut":false,"hidden":false,"merged":[[6,75,6,78],[6,79,6,82],[6,58,6,61],[6,64,7,64],[6,65,7,65],[6,66,7,66],[6,67,6,70],[6,71,6,74],[6,54,6,57],[6,23,7,23],[6,24,7,24],[6,25,6,28],[6,29,6,32],[6,33,6,36],[6,37,6,40],[6,43,7,43],[6,44,7,44],[6,45,7,45],[6,46,6,49],[6,50,6,53],[5,75,5,78],[5,79,5,82],[6,1,7,1],[6,2,7,2],[6,3,7,3],[6,4,6,7],[6,8,6,11],[6,12,6,15],[6,16,6,19],[6,22,7,22],[5,50,5,53],[5,54,5,57],[5,58,5,61],[5,65,5,68],[5,69,5,70],[5,71,5,74],[5,48,5,49],[0,1,4,19],[0,22,4,40],[0,43,4,61],[0,64,4,82],[5,2,5,5],[5,6,5,7],[5,8,5,11],[5,12,5,15],[5,16,5,19],[5,23,5,26],[5,27,5,28],[5,29,5,32],[5,33,5,36],[5,37,5,40],[5,44,5,47]]}
[null,"3.Measurements",null,null,null,null,null,null,null,null,null,null,null,null,null,null,null,null,null,null,null,null,"3.Measurements",null,null,null,null,null,null,null,null,null,null,null,null,null,null,null,null,null,null,null,null,"3.Measurements",null,null,null,null,null,null,null,null,null,null,null,null,null,null,null,null,null,null,null,null,"3.Measurements"]
[]
[]
[]
[]
[null,"Style / Reference",{"$f":"Picking!J9","v":""},null,null,null,"Color",null,{"$f":"Report!X15","v":0},null,null,null,"Customer",null,null,null,{"$f":"Picking!J6","v":""},null,null,null,null,null,"Style / Reference",{"$f":"C6","v":""},null,null,null,"Color",null,{"$f":"I6","v":0},null,null,null,"Customer",null,null,null,{"$f":"Q6","v":""},null,null,null,null,null,"Style / Reference",{"$f":"X6","v":""},null,null,null,"Color",null,{"$f":"AD6","v":0},null,null,null,"Customer",null,null,null,{"$f":"AL6","v":""},null,null,null,null,null,"Style / Reference",{"$f":"AS6","v":""},null,null,null,"Color",null,{"$f":"AY6","v":0},null,null,null,"Customer",null,null,null,{"$f":"BG6","v":""}]
[null,"Measure description","#","Tol","Size : ",null,null,null,"Size : ",null,null,null,"Size : ",null,null,null,"Size : ",null,null,null,null,null,"Measure description","#","Tol","Size : ",null,null,null,"Size : ",null,null,null,"Size : ",null,null,null,"Size : ",null,null,null,null,null,"Measure description","#","Tol","Size : ",null,null,null,"Size : ",null,null,null,"Size : ",null,null,null,"Size : ",null,null,null,null,null,"Measure description","#","Tol","Size : ",null,null,null,"Size : ",null,null,null,"Size : ",null,null,null,"Size : "]
[null,null,null,null,"M1","M2","M3","Theor. Meas","M4","M5","M6","Theor. Meas","M7","M8","M9","Theor. Meas","M10","M11","M12","Theor. Meas",null,null,null,null,null,"M13","M14","M15","Theor. Meas","M16","M17","M18","Theor. Meas","M19","M20","M21","Theor. Meas","M22","M23","M24","Theor. Meas",null,null,null,null,null,"M25","M26","M27","Theor. Meas","M28","M29","M30","Theor. Meas","M31","M32","M33","Theor. Meas","M34","M35","M36","Theor. Meas",null,null,null,null,null,"M37","M38","M39","Theor. Meas","M40","M41","M42","Theor. Meas","M43","M44","M45","Theor. Meas","M46","M47","M48","Theor. Meas"]

{"sheet":"Measurements 3p_CM_Tolsize","index":7,"n_rows":10,"n_cols":373,"rows_kept":10,"cut":false,"hidden":false,"merged":[[0,1,4,29],[0,32,4,60],[0,63,4,91],[5,1,5,3],[5,32,5,34],[5,63,5,65],[6,77,6,81],[6,82,6,85],[6,86,6,91],[6,32,6,35],[6,36,6,40],[6,41,6,45],[6,46,6,50],[6,51,6,54],[6,55,6,60],[7,1,8,8],[7,9,8,10],[7,11,8,11],[7,12,7,17],[7,18,7,23],[7,24,7,29],[6,63,6,66],[6,67,6,71],[6,72,6,76],[6,1,6,4],[6,5,6,9],[6,10,6,14],[6,15,6,19],[6,20,6,23],[6,24,6,29],[7,63,8,70],[7,71,8,72],[7,73,8,73],[7,74,7,79],[7,80,7,85],[7,86,7,91],[7,32,8,39],[7,40,8,41],[7,42,8,42],[7,43,7,48],[7,49,7,54],[7,55,7,60],[10,1,10,8],[10,9,10,10],[10,32,10,39],[10,40,10,41],[10,63,10,70],[10,71,10,72],[9,1,9,8],[9,9,9,10],[9,32,9,39],[9,40,9,41],[9,63,9,70],[9,71,9,72],[12,1,12,8],[12,9,12,10],[12,32,12,39],[12,40,12,41],[12,63,12,70],[12,71,12,72],[11,1,11,8],[11,9,11,10],[11,32,11,39],[11,40,11,41],[11,63,11,70],[11,71,11,72],[14,1,14,8],[14,9,14,10],[14,32,14,39],[14,40,14,41],[14,63,14,70],[14,71,14,72],[13,1,13,8],[13,9,13,10],[13,32,13,39],[13,40,13,41],[13,63,13,70],[13,71,13,72],[16,1,16,8],[16,9,16,10],[16,32,16,39],[16,40,16,41],[16,63,16,70],[16,71,16,72],[15,1,15,8],[15,9,15,10],[15,32,15,39],[15,40,15,41],[15,63,15,70],[15,71,15,72],[18,1,18,8],[18,9,18,10],[18,32,18,39],[18,40,18,41],[18,63,18,70],[18,71,18,72],[17,1,17,8],[17,9,17,10],[17,32,17,39],[17,40,17,41],[17,63,17,70],[17,71,17,72],[20,1,20,8],[20,9,20,10],[20,32,20,39],[20,40,20,41],[20,63,20,70],[20,71,20,72],[19,1,19,8],[19,9,19,10],[19,32,19,39],[19,40,19,41],[19,63,19,70],[19,71,19,72],[22,1,22,8],[22,9,22,10],[22,32,22,39],[22,40,22,41],[22,63,22,70],[22,71,22,72],[21,1,21,8],[21,9,21,10],[21,32,21,39],[21,40,21,41],[21,63,21,70],[21,71,21,72],[24,1,24,8],[24,9,24,10],[24,32,24,39],[24,40,24,41],[24,63,24,70],[24,71,24,72],[23,1,23,8],[23,9,23,10],[23,32,23,39],[23,40,23,41],[23,63,23,70],[23,71,23,72],[26,1,26,8],[26,9,26,10],[26,32,26,39],[26,40,26,41],[26,63,26,70],[26,71,26,72],[25,1,25,8],[25,9,25,10],[25,32,25,39],[25,40,25,41],[25,63,25,70],[25,71,25,72],[28,1,28,8],[28,9,28,10],[28,32,28,39],[28,40,28,41],[28,63,28,70],[28,71,28,72],[27,1,27,8],[27,9,27,10],[27,32,27,39],[27,40,27,41],[27,63,27,70],[27,71,27,72],[30,1,30,8],[30,9,30,10],[30,32,30,39],[30,40,30,41],[30,63,30,70],[30,71,30,72],[29,1,29,8],[29,9,29,10],[29,32,29,39],[29,40,29,41],[29,63,29,70],[29,71,29,72],[32,1,32,8],[32,9,32,10],[32,32,32,39],[32,40,32,41],[32,63,32,70],[32,71,32,72],[31,1,31,8],[31,9,31,10],[31,32,31,39],[31,40,31,41],[31,63,31,70],[31,71,31,72],[34,1,34,8],[34,9,34,10],[34,32,34,39],[34,40,34,41],[34,63,34,70],[34,71,34,72],[33,1,33,8],[33,9,33,10],[33,32,33,39],[33,40,33,41],[33,63,33,70],[33,71,33,72],[36,1,36,8],[36,9,36,10],[36,32,36,39],[36,40,36,41],[36,63,36,70],[36,71,36,72],[35,1,35,8],[35,9,35,10],[35,32,35,39],[35,40,35,41],[35,63,35,70],[35,71,35,72],[38,1,38,8],[38,9,38,10],[38,32,38,39],[38,40,38,41],[38,63,38,70],[38,71,38,72],[37,1,37,8],[37,9,37,10],[37,32,37,39],[37,40,37,41],[37,63,37,70],[37,71,37,72],[40,1,40,8],[40,9,40,10],[40,32,40,39],[40,40,40,41],[40,63,40,70],[40,71,40,72],[39,1,39,8],[39,9,39,10],[39,32,39,39],[39,40,39,41],[39,63,39,70],[39,71,39,72],[42,1,42,8],[42,9,42,10],[42,32,42,39],[42,40,42,41],[42,63,42,70],[42,71,42,72],[41,1,41,8],[41,9,41,10],[41,32,41,39],[41,40,41,41],[41,63,41,70],[41,71,41,72]]}
[null,"3.Measurements",null,null,null,null,null,null,null,null,null,null,null,null,null,null,null,null,null,null,null,null,null,null,null,null,null,null,null,null,null,null,"3.Measurements",null,null,null,null,null,null,null,null,null,null,null,null,null,null,null,null,null,null,null,null,null,null,null,null,null,null,null,null,null,null,"3.Measurements"]
[]
[]
[]
[]
[]
[null,"Style / Reference",null,null,null,{"$f":"Style_Ref","v":""},null,null,null,null,"Color",null,null,null,null,{"$f":"Color","v":0},null,null,null,null,"Customer",null,null,null,{"$f":"Customer","v":0},null,null,null,null,null,null,null,"Style / Reference",null,null,null,{"$f":"Style_Ref","v":""},null,null,null,null,"Color",null,null,null,null,{"$f":"Color","v":0},null,null,null,null,"Customer",null,null,null,{"$f":"Customer","v":0},null,null,null,null,null,null,null,"Style / Reference",null,null,null,{"$f":"Style_Ref","v":""},null,null,null,null,"Color",null,null,null,null,{"$f":"Color","v":0},null,null,null,null,"Customer",null,null,null,{"$f":"Customer","v":0}]
[null,"Measurements",null,null,null,null,null,null,null,"#",null,null,null,null,null,null,null,null,null,null,null,null,null,null,null,null,null,null,null,null,null,null,"Measurements",null,null,null,null,null,null,null,"#",null,null,null,null,null,null,null,null,null,null,null,null,null,null,null,null,null,null,null,null,null,null,"Measurements",null,null,null,null,null,null,null,"#"]
[null,null,null,null,null,null,null,null,null,null,null,null,"M1","M2","M3","Tole+","Tole-","Theo","M4","M5","M6","Tole+","Tole-","Theo","M7","M8","M9","Tole+","Tole-","Theo",null,null,null,null,null,null,null,null,null,null,null,null,null,"M10","M11","M12","Tole+","Tole-","Theo","M13","M14","M15","Tole+","Tole-","Theo","M16","M17","M18","Tole+","Tole-","Theo",null,null,null,null,null,null,null,null,null,null,null,null,null,"M19","M20","M21","Tole+","Tole-","Theo","M22","M23","M24","Tole+","Tole-","Theo","M33","M34","M35","Tole+","Tole-","Theo"]
[null,null,null,null,null,null,null,null,null,null,null,null,null,null,null,null,null,null,null,null,null,null,null,null,null,null,null,null,null,null,null,null,null,null,null,null,null,null,null,null,null,null,null,null,null,null,null,null,null,null,null,null,null,null,null,null,null,null,null,null,null,null,null,null,null,null,null,null,null,null,null,null,null,null,null,null,null,null,null,null,null,null,null,null,null,null,null,null,null,null,null,null,null,null,null,null,null,null,null,null,null,null,null,null,null,null,null,null,null,null,null,null,null,null,null,null,null,null,null,null,null,null,null,null,null,null,null,null,null,null,null,null,null,null,null,null,null,null,null,null,null,null,null,null,null,null,null,null,null,null,null,null,null,null,null,null,null,null,null,null,null,null,null,null,null,null,null,null,null,null,null,null,null,null,null,null,null,null,null,null,null,null,null,null,null,null,null,null,null,null,null,null,null,null,null,null,null,null,null,null,null,null,null,null,null,null,null,null,null,null,null,null,null,null,null,null,null,null,null,null,null,null,null,null,null,null,null,null,null,null,null,null,null,null,null,null,null,null,null,null,null,null,null,null,null,null,null,null,null,null,null,null,null,null,null,null,null,null,null,null,null,null,null,null,null,null,null,null,null,null,null,null,null,null,null,null,null,null,null,null,null,null,null,null,null,null,null,null,null,null,null,null,null,null,null,null,null,null,null,null,null,null,null,null,null,null,null,null,null,null,null,null,null,null,null,null,null,null,null,null,null,null,null,null,null,null,null,null,null,null,null,null,null,null,null,null,null,null,null,null,null,null,null,null,null,null,null,null,null,null,null,null,null,null,null,null,null,null,null,null,null,null,null,null,null,null,null,null,null,null,"1/2 CHEST","A","G"]

{"sheet":"Measurements 5p_IN","index":8,"n_rows":8,"n_cols":91,"rows_kept":8,"cut":false,"hidden":false,"merged":[[6,70,7,70],[5,87,5,90],[5,64,5,67],[5,71,5,76],[5,77,5,78],[6,85,6,90],[6,71,7,71],[6,72,7,72],[6,73,6,78],[6,79,6,84],[5,84,5,86],[6,1,7,1],[6,2,7,2],[6,3,7,3],[6,4,6,9],[6,10,6,15],[5,54,5,55],[6,48,7,48],[6,56,6,61],[6,62,6,67],[6,16,6,21],[6,24,7,24],[6,25,7,25],[5,56,5,60],[5,61,5,63],[6,26,7,26],[6,27,6,32],[6,49,7,49],[6,50,6,55],[6,33,6,38],[6,39,6,44],[6,47,7,47],[0,70,4,90],[5,2,5,7],[5,8,5,9],[5,10,5,14],[5,15,5,17],[5,18,5,21],[5,25,5,30],[5,79,5,83],[5,31,5,32],[5,33,5,37],[5,38,5,40],[5,41,5,44],[5,48,5,53],[0,1,4,21],[0,24,4,44],[0,47,4,67]]}
[null,"3.Measurements",null,null,null,null,null,null,null,null,null,null,null,null,null,null,null,null,null,null,null,null,null,null,"3.Measurements",null,null,null,null,null,null,null,null,null,null,null,null,null,null,null,null,null,null,null,null,null,null,"3.Measurements",null,null,null,null,null,null,null,null,null,null,null,null,null,null,null,null,null,null,null,null,null,null,"3.Measurements"]
[]
[]
[]
[]
[null,"Style / Reference",{"$f":"Picking!J9","v":""},null,null,null,null,null,"Color",null,{"$f":"Report!X15","v":0},null,null,null,null,"Customer",null,null,{"$f":"Picking!J6","v":""},null,null,null,null,null,"Style / Reference",{"$f":"C6","v":""},null,null,null,null,null,"Color",null,{"$f":"K6","v":0},null,null,null,null,"Customer",null,null,{"$f":"S6","v":""},null,null,null,null,null,"Style / Reference",{"$f":"Z6","v":""},null,null,null,null,null,"Color",null,{"$f":"AH6","v":0},null,null,null,null,"Customer",null,null,{"$f":"AP6","v":""},null,null,null,null,null,"Style / Reference",{"$f":"AW6","v":""},null,null,null,null,null,"Color",null,{"$f":"BE6","v":0},null,null,null,null,"Customer",null,null,{"$f":"BM6","v":""}]
[null,"Measure description","#","Tol","Size : ",null,null,null,null,null,"Size : ",null,null,null,null,null,"Size : ",null,null,null,null,null,null,null,"Measure description","#","Tol","Size : ",null,null,null,null,null,"Size : ",null,null,null,null,null,"Size : ",null,null,null,null,null,null,null,"Measure description","#","Tol","Size : ",null,null,null,null,null,"Size : ",null,null,null,null,null,"Size : ",null,null,null,null,null,null,null,"Measure description","#","Tol","Size : ",null,null,null,null,null,"Size : ",null,null,null,null,null,"Size : "]
[null,null,null,null,"M1","M2","M3","M4","M5","Theor. Meas","M6","M7","M8","M9","M10","Theor. Meas","M11","M12","M13","M14","M15","Theor. Meas",null,null,null,null,null,"M16","M17","M18","M19","M20","Theor. Meas","M21","M22","M23","M24","M25","Theor. Meas","M26","M27","M28","M29","M30","Theor. Meas",null,null,null,null,null,"M31","M32","M33","M34","M35","Theor. Meas","M36","M37","M38","M39","M40","Theor. Meas","M41","M42","M43","M44","M45","Theor. Meas",null,null,null,null,null,"M46","M47","M48","M49","M50","Theor. Meas","M51","M52","M53","M54","M55","Theor. Meas","M56","M57","M58","M59","M60","Theor. Meas"]

{"sheet":"Measurements 5p_CM","index":9,"n_rows":8,"n_cols":91,"rows_kept":8,"cut":false,"hidden":false,"merged":[[6,70,7,70],[5,87,5,90],[5,64,5,67],[5,71,5,76],[5,77,5,78],[6,85,6,90],[6,71,7,71],[6,72,7,72],[6,73,6,78],[6,79,6,84],[5,84,5,86],[6,1,7,1],[6,2,7,2],[6,3,7,3],[6,4,6,9],[6,10,6,15],[5,54,5,55],[6,48,7,48],[6,56,6,61],[6,62,6,67],[6,16,6,21],[6,24,7,24],[6,25,7,25],[5,56,5,60],[5,61,5,63],[6,26,7,26],[6,27,6,32],[6,49,7,49],[6,50,6,55],[6,33,6,38],[6,39,6,44],[6,47,7,47],[0,70,4,90],[5,2,5,7],[5,8,5,9],[5,10,5,14],[5,15,5,17],[5,18,5,21],[5,25,5,30],[5,79,5,83],[5,31,5,32],[5,33,5,37],[5,38,5,40],[5,41,5,44],[5,48,5,53],[0,1,4,21],[0,24,4,44],[0,47,4,67]]}
[null,"3.Measurements",null,null,null,null,null,null,null,null,null,null,null,null,null,null,null,null,null,null,null,null,null,null,"3.Measurements",null,null,null,null,null,null,null,null,null,null,null,null,null,null,null,null,null,null,null,null,null,null,"3.Measurements",null,null,null,null,null,null,null,null,null,null,null,null,null,null,null,null,null,null,null,null,null,null,"3.Measurements"]
[]
[]
[]
[]
[null,"Style / Reference",{"$f":"Picking!J9","v":""},null,null,null,null,null,"Color",null,{"$f":"Report!X15","v":0},null,null,null,null,"Customer",null,null,{"$f":"Picking!J6","v":""},null,null,null,null,null,"Style / Reference",{"$f":"C6","v":""},null,null,null,null,null,"Color",null,{"$f":"K6","v":0},null,null,null,null,"Customer",null,null,{"$f":"S6","v":""},null,null,null,null,null,"Style / Reference",{"$f":"Z6","v":""},null,null,null,null,null,"Color",null,{"$f":"AH6","v":0},null,null,null,null,"Customer",null,null,{"$f":"AP6","v":""},null,null,null,null,null,"Style / Reference",{"$f":"AW6","v":""},null,null,null,null,null,"Color",null,{"$f":"BE6","v":0},null,null,null,null,"Customer",null,null,{"$f":"BM6","v":""}]
[null,"Measure description","#","Tol","Size : ",null,null,null,null,null,"Size : ",null,null,null,null,null,"Size : ",null,null,null,null,null,null,null,"Measure description","#","Tol","Size : ",null,null,null,null,null,"Size : ",null,null,null,null,null,"Size : ",null,null,null,null,null,null,null,"Measure description","#","Tol","Size : ",null,null,null,null,null,"Size : ",null,null,null,null,null,"Size : ",null,null,null,null,null,null,null,"Measure description","#","Tol","Size : ",null,null,null,null,null,"Size : ",null,null,null,null,null,"Size : "]
[null,null,null,null,"M1","M2","M3","M4","M5","Theor. Meas","M6","M7","M8","M9","M10","Theor. Meas","M11","M12","M13","M14","M15","Theor. Meas",null,null,null,null,null,"M16","M17","M18","M19","M20","Theor. Meas","M21","M22","M23","M24","M25","Theor. Meas","M26","M27","M28","M29","M30","Theor. Meas",null,null,null,null,null,"M31","M32","M33","M34","M35","Theor. Meas","M36","M37","M38","M39","M40","Theor. Meas","M41","M42","M43","M44","M45","Theor. Meas",null,null,null,null,null,"M46","M47","M48","M49","M50","Theor. Meas","M51","M52","M53","M54","M55","Theor. Meas","M56","M57","M58","M59","M60","Theor. Meas"]

{"sheet":"Measurements 10p_IN","index":10,"n_rows":9,"n_cols":107,"rows_kept":9,"cut":false,"hidden":false,"merged":[[5,64,5,66],[0,1,4,25],[0,28,4,52],[0,55,4,79],[0,82,4,106],[5,2,5,9],[5,10,5,12],[5,13,5,16],[5,17,5,19],[5,20,5,25],[5,29,5,36],[5,37,5,39],[5,40,5,43],[5,44,5,46],[5,47,5,52],[5,56,5,63],[5,98,5,100],[5,101,5,106],[6,1,7,1],[6,2,7,2],[6,3,7,3],[6,4,6,14],[6,15,6,25],[6,28,7,28],[6,29,7,29],[6,30,7,30],[5,67,5,70],[5,71,5,73],[5,74,5,79],[5,83,5,90],[5,91,5,93],[5,94,5,97],[6,85,6,95],[6,96,6,106],[6,31,6,41],[6,42,6,52],[6,55,7,55],[6,56,7,56],[6,57,7,57],[6,58,6,68],[8,1,8,3],[8,28,8,30],[8,55,8,57],[8,82,8,84],[6,69,6,79],[6,82,7,82],[6,83,7,83],[6,84,7,84]]}
[null,"3.Measurements",null,null,null,null,null,null,null,null,null,null,null,null,null,null,null,null,null,null,null,null,null,null,null,null,null,null,"3.Measurements",null,null,null,null,null,null,null,null,null,null,null,null,null,null,null,null,null,null,null,null,null,null,null,null,null,null,"3.Measurements",null,null,null,null,null,null,null,null,null,null,null,null,null,null,null,null,null,null,null,null,null,null,null,null,null,null,"3.Measurements"]
[]
[]
[]
[]
[null,"Style / Reference",{"$f":"Picking!J9","v":""},null,null,null,null,null,null,null,"Color",null,null,{"$f":"Report!X15","v":0},null,null,null,"Customer",null,null,{"$f":"Picking!J6","v":""},null,null,null,null,null,null,null,"Style / Reference",{"$f":"C6","v":""},null,null,null,null,null,null,null,"Color",null,null,{"$f":"N6","v":0},null,null,null,"Customer",null,null,{"$f":"U6","v":""},null,null,null,null,null,null,null,"Style / Reference",{"$f":"AD6","v":""},null,null,null,null,null,null,null,"Color",null,null,{"$f":"AO6","v":0},null,null,null,"Customer",null,null,{"$f":"AV6","v":""},null,null,null,null,null,null,null,"Style / Reference",{"$f":"BE6","v":""},null,null,null,null,null,null,null,"Color",null,null,{"$f":"BP6","v":0},null,null,null,"Customer",null,null,{"$f":"BW6","v":""}]
[null,"Measure description","#","Tol","Size : ",null,null,null,null,null,null,null,null,null,null,"Size : ",null,null,null,null,null,null,null,null,null,null,null,null,"Measure description","#","Tol","Size : ",null,null,null,null,null,null,null,null,null,null,"Size : ",null,null,null,null,null,null,null,null,null,null,null,null,"Measure description","#","Tol","Size : ",null,null,null,null,null,null,null,null,null,null,"Size : ",null,null,null,null,null,null,null,null,null,null,null,null,"Measure description","#","Tol","Size : ",null,null,null,null,null,null,null,null,null,null,"Size : "]
[null,null,null,null,"M1","M2","M3","M4","M5","M6","M7","M8","M9","M10","Theor. Meas","M11","M12","M13","M14","M15","M16","M17","M18","M19","M20","Theor. Meas",null,null,null,null,null,"M21","M22","M23","M24","M25","M26","M27","M28","M29","M30","Theor. Meas","M31","M32","M33","M34","M35","M36","M37","M38","M39","M40","Theor. Meas",null,null,null,null,null,"M41","M42","M43","M44","M45","M46","M47","M48","M49","M50","Theor. Meas","M51","M52","M53","M54","M55","M56","M57","M58","M59","M60","Theor. Meas",null,null,null,null,null,"M61","M62","M63","M64","M65","M66","M67","M68","M69","M70","Theor. Meas","M71","M72","M73","M74","M75","M76","M77","M78","M79","M80","Theor. Meas"]
[null,"Color code =>",null,null,null,null,null,null,null,null,null,null,null,null,null,null,null,null,null,null,null,null,null,null,null,null,null,null,"Color code =>",null,null,null,null,null,null,null,null,null,null,null,null,null,null,null,null,null,null,null,null,null,null,null,null,null,null,"Color code =>",null,null,null,null,null,null,null,null,null,null,null,null,null,null,null,null,null,null,null,null,null,null,null,null,null,null,"Color code =>"]

{"sheet":"Measurements 10p_CM","index":11,"n_rows":9,"n_cols":107,"rows_kept":9,"cut":false,"hidden":false,"merged":[[5,64,5,66],[0,1,4,25],[0,28,4,52],[0,55,4,79],[0,82,4,106],[5,2,5,9],[5,10,5,12],[5,13,5,16],[5,17,5,19],[5,20,5,25],[5,29,5,36],[5,37,5,39],[5,40,5,43],[5,44,5,46],[5,47,5,52],[5,56,5,63],[5,98,5,100],[5,101,5,106],[6,1,7,1],[6,2,7,2],[6,3,7,3],[6,4,6,14],[6,15,6,25],[6,28,7,28],[6,29,7,29],[6,30,7,30],[5,67,5,70],[5,71,5,73],[5,74,5,79],[5,83,5,90],[5,91,5,93],[5,94,5,97],[6,85,6,95],[6,96,6,106],[6,31,6,41],[6,42,6,52],[6,55,7,55],[6,56,7,56],[6,57,7,57],[6,58,6,68],[8,1,8,3],[8,28,8,30],[8,55,8,57],[8,82,8,84],[6,69,6,79],[6,82,7,82],[6,83,7,83],[6,84,7,84]]}
[null,"3.Measurements",null,null,null,null,null,null,null,null,null,null,null,null,null,null,null,null,null,null,null,null,null,null,null,null,null,null,"3.Measurements",null,null,null,null,null,null,null,null,null,null,null,null,null,null,null,null,null,null,null,null,null,null,null,null,null,null,"3.Measurements",null,null,null,null,null,null,null,null,null,null,null,null,null,null,null,null,null,null,null,null,null,null,null,null,null,null,"3.Measurements"]
[]
[]
[]
[]
[null,"Style / Reference",{"$f":"Picking!J9","v":""},null,null,null,null,null,null,null,"Color",null,null,{"$f":"Report!X15","v":0},null,null,null,"Customer",null,null,{"$f":"Picking!J6","v":""},null,null,null,null,null,null,null,"Style / Reference",{"$f":"C6","v":""},null,null,null,null,null,null,null,"Color",null,null,{"$f":"N6","v":0},null,null,null,"Customer",null,null,{"$f":"U6","v":""},null,null,null,null,null,null,null,"Style / Reference",{"$f":"AD6","v":""},null,null,null,null,null,null,null,"Color",null,null,{"$f":"AO6","v":0},null,null,null,"Customer",null,null,{"$f":"AV6","v":""},null,null,null,null,null,null,null,"Style / Reference",{"$f":"BE6","v":""},null,null,null,null,null,null,null,"Color",null,null,{"$f":"BP6","v":0},null,null,null,"Customer",null,null,{"$f":"BW6","v":""}]
[null,"Measure description","#","Tol","Size : ",null,null,null,null,null,null,null,null,null,null,"Size : ",null,null,null,null,null,null,null,null,null,null,null,null,"Measure description","#","Tol","Size : ",null,null,null,null,null,null,null,null,null,null,"Size : ",null,null,null,null,null,null,null,null,null,null,null,null,"Measure description","#","Tol","Size : ",null,null,null,null,null,null,null,null,null,null,"Size : ",null,null,null,null,null,null,null,null,null,null,null,null,"Measure description","#","Tol","Size : ",null,null,null,null,null,null,null,null,null,null,"Size : "]
[null,null,null,null,"M1","M2","M3","M4","M5","M6","M7","M8","M9","M10","Theor. Meas","M11","M12","M13","M14","M15","M16","M17","M18","M19","M20","Theor. Meas",null,null,null,null,null,"M21","M22","M23","M24","M25","M26","M27","M28","M29","M30","Theor. Meas","M31","M32","M33","M34","M35","M36","M37","M38","M39","M40","Theor. Meas",null,null,null,null,null,"M41","M42","M43","M44","M45","M46","M47","M48","M49","M50","Theor. Meas","M51","M52","M53","M54","M55","M56","M57","M58","M59","M60","Theor. Meas",null,null,null,null,null,"M61","M62","M63","M64","M65","M66","M67","M68","M69","M70","Theor. Meas","M71","M72","M73","M74","M75","M76","M77","M78","M79","M80","Theor. Meas"]
[null,"Color code =>",null,null,null,null,null,null,null,null,null,null,null,null,null,null,null,null,null,null,null,null,null,null,null,null,null,null,"Color code =>",null,null,null,null,null,null,null,null,null,null,null,null,null,null,null,null,null,null,null,null,null,null,null,null,null,null,"Color code =>",null,null,null,null,null,null,null,null,null,null,null,null,null,null,null,null,null,null,null,null,null,null,null,null,null,null,"Color code =>"]

{"sheet":"Measurements 20p","index":12,"n_rows":7,"n_cols":51,"rows_kept":7,"cut":false,"hidden":false,"merged":[[6,47,7,47],[6,48,7,48],[6,49,7,49],[6,50,7,50],[6,41,7,41],[6,42,7,42],[6,43,7,43],[6,44,7,44],[6,45,7,45],[6,46,7,46],[6,40,7,40],[6,29,7,29],[6,30,7,30],[6,31,7,31],[6,32,7,32],[6,33,7,33],[6,34,7,34],[6,35,7,35],[6,36,7,36],[6,37,7,37],[6,38,7,38],[6,39,7,39],[6,28,7,28],[6,15,7,15],[6,16,7,16],[6,17,7,17],[6,18,7,18],[6,19,7,19],[6,20,7,20],[6,21,7,21],[6,22,7,22],[6,23,7,23],[6,24,7,24],[6,27,7,27],[6,14,7,14],[5,41,5,45],[5,46,5,50],[6,1,7,1],[6,2,7,2],[6,3,7,3],[6,4,7,4],[6,5,7,5],[6,6,7,6],[6,7,7,7],[6,8,7,8],[6,9,7,9],[6,10,7,10],[6,11,7,11],[6,12,7,12],[6,13,7,13],[0,27,4,50],[5,2,5,4],[5,5,5,9],[5,10,5,14],[5,15,5,19],[5,20,5,24],[5,28,5,30],[5,31,5,35],[5,36,5,40],[0,1,4,25]]}
[null,"3.Measurements",null,null,null,null,null,null,null,null,null,null,null,null,null,null,null,null,null,null,null,null,null,null,null,null,null,"3.Measurements"]
[]
[]
[]
[]
[null,"Style / Reference",{"$f":"Picking!J9","v":""},null,null,"Color",null,null,null,null,{"$f":"Report!X15","v":0},null,null,null,null,"Customer",null,null,null,null,{"$f":"Picking!J6","v":""},null,null,null,null,null,null,"Style / Reference",{"$f":"C6","v":""},null,null,"Color",null,null,null,null,{"$f":"K6","v":0},null,null,null,null,"Customer",null,null,null,null,{"$f":"U6","v":""}]
[null,"Measure description","#","Tol","Theor. Meas","M1","M2","M3","M4","M5","M6","M7","M8","M9","M10","M11","M12","M13","M14","M15","M16","M17","M18","M19","M20",null,null,"Measure description","#","Tol","Theor. Meas","M1","M2","M3","M4","M5","M6","M7","M8","M9","M10","M11","M12","M13","M14","M15","M16","M17","M18","M19","M20"]

{"sheet":"Measurements Shoes 3p","index":13,"n_rows":34,"n_cols":41,"rows_kept":34,"cut":false,"hidden":false,"merged":[[18,33,18,36],[18,37,18,40],[30,4,30,7],[30,8,30,11],[30,12,30,15],[30,16,30,19],[30,25,30,28],[30,29,30,32],[30,33,30,36],[30,37,30,40],[18,4,18,7],[18,8,18,11],[18,12,18,15],[18,16,18,19],[18,25,18,28],[18,29,18,32],[6,37,6,40],[5,33,5,36],[5,37,5,40],[6,1,7,1],[6,2,7,2],[6,3,7,3],[6,4,6,7],[6,8,6,11],[6,12,6,15],[6,16,6,19],[6,22,7,22],[6,23,7,23],[6,24,7,24],[6,25,6,28],[6,29,6,32],[6,33,6,36],[0,1,4,19],[0,22,4,40],[5,2,5,5],[5,6,5,7],[5,8,5,11],[5,12,5,15],[5,16,5,19],[5,23,5,26],[5,27,5,28],[5,29,5,32]]}
[null,"3.Measurements",null,null,null,null,null,null,null,null,null,null,null,null,null,null,null,null,null,null,null,null,"3.Measurements"]
[]
[]
[]
[]
[null,"Style / Reference",{"$f":"Picking!J9","v":""},null,null,null,"Color",null,{"$f":"Report!X15","v":0},null,null,null,"Customer",null,null,null,{"$f":"Picking!J6","v":""},null,null,null,null,null,"Style / Reference",{"$f":"C6","v":""},null,null,null,"Color",null,{"$f":"I6","v":0},null,null,null,"Customer",null,null,null,{"$f":"Q6","v":""}]
[null,"Measure description","#","Tol","Size : ",null,null,null,"Size : ",null,null,null,"Size : ",null,null,null,"Size : ",null,null,null,null,null,"Measure description","#","Tol","Size : ",null,null,null,"Size : ",null,null,null,"Size : ",null,null,null,"Size : "]
[null,null,null,null,"M1","M2","M3","Theor. Meas","M4","M5","M6","Theor. Meas","M7","M8","M9","Theor. Meas","M10","M11","M12","Theor. Meas",null,null,null,null,null,"M37","M38","M39","Theor. Meas","M40","M41","M42","Theor. Meas","M43","M44","M45","Theor. Meas","M46","M47","M48","Theor. Meas"]
[]
[null,"Sole length (cm)",null,null,null,null,null,null,null,null,null,null,null,null,null,null,null,null,null,null,null,null,"Sole length (cm)"]
[]
[]
[]
[]
[]
[]
[]
[]
[null,null,null,null,"Size : ",null,null,null,"Size : ",null,null,null,"Size : ",null,null,null,"Size : ",null,null,null,null,null,null,null,null,"Size : ",null,null,null,"Size : ",null,null,null,"Size : ",null,null,null,"Size : "]
[null,null,null,null,"M13","M14","M15","Theor. Meas","M16","M17","M18","Theor. Meas","M19","M20","M21","Theor. Meas","M22","M23","M24","Theor. Meas",null,null,null,null,null,"M49","M50","M51","Theor. Meas","M52","M53","M54","Theor. Meas","M55","M56","M57","Theor. Meas","M58","M59","M60","Theor. Meas"]
[]
[null,"Sole length (cm)",null,null,null,null,null,null,null,null,null,null,null,null,null,null,null,null,null,null,null,null,"Sole length (cm)"]
[]
[]
[]
[]
[]
[]
[]
[]
[null,null,null,null,"Size : ",null,null,null,"Size : ",null,null,null,"Size : ",null,null,null,"Size : ",null,null,null,null,null,null,null,null,"Size : ",null,null,null,"Size : ",null,null,null,"Size : ",null,null,null,"Size : "]
[null,null,null,null,"M25","M26","M27","Theor. Meas","M28","M29","M30","Theor. Meas","M31","M32","M33","Theor. Meas","M34","M34","M36","Theor. Meas",null,null,null,null,null,"M61","M62","M63","Theor. Meas","M64","M65","M66","Theor. Meas","M67","M68","M69","Theor. Meas","M70","M71","M72","Theor. Meas"]
[]
[null,"Sole length (cm)",null,null,null,null,null,null,null,null,null,null,null,null,null,null,null,null,null,null,null,null,"Sole length (cm)"]

{"sheet":"Picking","index":14,"n_rows":28,"n_cols":45,"rows_kept":28,"cut":false,"hidden":false,"merged":[[24,18,24,20],[24,21,24,28],[24,29,24,33],[9,26,9,33],[12,18,12,25],[12,26,12,33],[19,18,19,20],[19,21,19,28],[19,29,19,33],[20,18,20,20],[20,21,20,28],[20,29,20,33],[69,26,69,29],[69,30,69,33],[66,15,66,17],[66,18,66,21],[66,22,66,25],[68,30,68,33],[69,11,69,14],[69,15,69,17],[69,18,69,21],[69,22,69,25],[68,15,68,17],[68,18,68,21],[68,22,68,25],[68,26,68,29],[62,18,62,21],[62,22,62,25],[62,26,62,29],[62,30,62,33],[66,26,66,29],[66,30,66,33],[67,11,67,14],[67,15,67,17],[67,18,67,21],[67,22,67,25],[67,26,67,29],[67,30,67,33],[63,26,63,29],[63,30,63,33],[64,30,64,33],[65,11,65,14],[65,15,65,17],[65,18,65,21],[65,22,65,25],[64,15,64,17],[64,18,64,21],[64,22,64,25],[64,26,64,29],[65,26,65,29],[57,26,57,29],[57,30,57,33],[54,15,54,17],[54,18,54,21],[54,22,54,25],[56,30,56,33],[57,11,57,14],[57,15,57,17],[57,18,57,21],[57,22,57,25],[56,15,56,17],[56,18,56,21],[56,22,56,25],[56,26,56,29],[50,18,50,21],[50,22,50,25],[50,26,50,29],[50,30,50,33],[54,26,54,29],[54,30,54,33],[55,11,55,14],[55,15,55,17],[55,18,55,21],[55,22,55,25],[55,26,55,29],[55,30,55,33],[51,26,51,29],[51,30,51,33],[52,30,52,33],[53,11,53,14],[53,15,53,17],[53,18,53,21],[53,22,53,25],[52,15,52,17],[52,18,52,21],[52,22,52,25],[52,26,52,29],[53,26,53,29],[45,26,45,29],[45,30,45,33],[42,15,42,17],[42,18,42,21],[42,22,42,25],[44,30,44,33],[45,11,45,14],[45,15,45,17],[45,18,45,21],[45,22,45,25],[44,15,44,17],[44,18,44,21],[44,22,44,25],[44,26,44,29],[38,18,38,21],[38,22,38,25],[38,26,38,29],[38,30,38,33],[42,26,42,29],[42,30,42,33],[43,11,43,14],[43,15,43,17],[43,18,43,21],[43,22,43,25],[43,26,43,29],[43,30,43,33],[39,26,39,29],[39,30,39,33],[40,30,40,33],[41,11,41,14],[41,15,41,17],[41,18,41,21],[41,22,41,25],[40,15,40,17],[40,18,40,21],[40,22,40,25],[40,26,40,29],[41,26,41,29],[31,11,31,14],[31,15,31,17],[31,18,31,21],[31,22,31,25],[31,26,31,29],[31,30,31,33],[33,26,33,29],[33,30,33,33],[32,30,32,33],[33,11,33,14],[33,15,33,17],[33,18,33,21],[33,22,33,25],[32,15,32,17],[32,18,32,21],[32,22,32,25],[32,26,32,29],[8,1,8,8],[8,9,8,16],[8,18,8,25],[8,26,8,33],[10,1,10,8],[10,9,10,16],[10,18,10,25],[10,26,10,33],[0,1,3,33],[5,1,5,8],[5,9,5,16],[5,18,5,25],[5,26,5,33],[7,1,7,8],[7,9,7,16],[7,18,7,25],[7,26,7,33],[6,1,6,8],[6,9,6,16],[6,18,6,25],[6,26,6,33],[9,1,9,8],[9,9,9,16],[9,18,9,25],[14,1,14,8],[14,9,14,16],[14,18,14,25],[14,26,14,33],[15,1,15,8],[15,9,15,16],[15,18,15,25],[15,26,15,33],[11,1,11,8],[11,9,11,16],[11,18,11,25],[11,26,11,33],[13,1,13,8],[13,9,13,16],[13,18,13,25],[13,26,13,33],[12,1,12,8],[12,9,12,12],[12,13,12,16],[16,1,16,8],[16,9,16,16],[16,18,16,25],[16,26,16,33],[21,18,21,20],[21,21,21,28],[21,29,21,33],[20,1,23,8],[20,9,23,16],[22,18,22,20],[22,21,22,28],[22,29,22,33],[23,18,23,20],[23,21,23,28],[23,29,23,33],[18,21,18,28],[18,29,18,33],[29,26,29,29],[29,30,29,33],[30,11,30,14],[30,15,30,17],[30,18,30,21],[30,22,30,25],[26,1,27,5],[26,6,27,10],[26,11,27,14],[26,15,27,17],[26,18,27,21],[26,22,27,25],[26,26,27,29],[26,30,27,33],[30,26,30,29],[30,30,30,33],[33,1,33,5],[33,6,33,10],[32,1,32,5],[32,6,32,10],[32,11,32,14],[34,11,34,14],[28,30,28,33],[29,11,29,14],[29,15,29,17],[29,18,29,21],[29,22,29,25],[31,1,31,5],[31,6,31,10],[30,1,30,5],[30,6,30,10],[29,1,29,5],[29,6,29,10],[28,1,28,5],[28,6,28,10],[28,11,28,14],[28,15,28,17],[28,18,28,21],[28,22,28,25],[28,26,28,29],[34,18,34,21],[34,22,34,25],[34,26,34,29],[34,30,34,33],[36,30,36,33],[37,11,37,14],[37,15,37,17],[37,18,37,21],[37,22,37,25],[36,15,36,17],[36,18,36,21],[36,22,36,25],[36,26,36,29],[35,11,35,14],[35,15,35,17],[35,18,35,21],[35,22,35,25],[35,26,35,29],[35,30,35,33],[37,26,37,29],[37,30,37,33],[38,1,38,5],[38,6,38,10],[37,1,37,5],[37,6,37,10],[36,1,36,5],[36,6,36,10],[36,11,36,14],[39,11,39,14],[34,15,34,17],[35,1,35,5],[35,6,35,10],[34,1,34,5],[34,6,34,10],[38,11,38,14],[38,15,38,17],[41,30,41,33],[41,1,41,5],[41,6,41,10],[40,1,40,5],[40,6,40,10],[40,11,40,14],[42,11,42,14],[39,15,39,17],[39,18,39,21],[39,22,39,25],[39,1,39,5],[39,6,39,10],[45,1,45,5],[45,6,45,10],[44,1,44,5],[44,6,44,10],[44,11,44,14],[46,11,46,14],[43,1,43,5],[43,6,43,10],[42,1,42,5],[42,6,42,10],[46,18,46,21],[46,22,46,25],[46,26,46,29],[46,30,46,33],[48,30,48,33],[49,11,49,14],[49,15,49,17],[49,18,49,21],[49,22,49,25],[48,15,48,17],[48,18,48,21],[48,22,48,25],[48,26,48,29],[47,11,47,14],[47,15,47,17],[47,18,47,21],[47,22,47,25],[47,26,47,29],[47,30,47,33],[49,26,49,29],[49,30,49,33],[50,1,50,5],[50,6,50,10],[49,1,49,5],[49,6,49,10],[48,1,48,5],[48,6,48,10],[48,11,48,14],[51,11,51,14],[46,15,46,17],[47,1,47,5],[47,6,47,10],[46,1,46,5],[46,6,46,10],[50,11,50,14],[50,15,50,17],[53,30,53,33],[53,1,53,5],[53,6,53,10],[52,1,52,5],[52,6,52,10],[52,11,52,14],[54,11,54,14],[51,15,51,17],[51,18,51,21],[51,22,51,25],[51,1,51,5],[51,6,51,10],[57,1,57,5],[57,6,57,10],[56,1,56,5],[56,6,56,10],[56,11,56,14],[58,11,58,14],[55,1,55,5],[55,6,55,10],[54,1,54,5],[54,6,54,10],[58,18,58,21],[58,22,58,25],[58,26,58,29],[58,30,58,33],[60,30,60,33],[61,11,61,14],[61,15,61,17],[61,18,61,21],[61,22,61,25],[60,15,60,17],[60,18,60,21],[60,22,60,25],[60,26,60,29],[59,11,59,14],[59,15,59,17],[59,18,59,21],[59,22,59,25],[59,26,59,29],[59,30,59,33],[61,26,61,29],[61,30,61,33],[62,1,62,5],[62,6,62,10],[61,1,61,5],[61,6,61,10],[60,1,60,5],[60,6,60,10],[60,11,60,14],[63,11,63,14],[58,15,58,17],[59,1,59,5],[59,6,59,10],[58,1,58,5],[58,6,58,10],[62,11,62,14],[62,15,62,17],[65,30,65,33],[65,1,65,5],[65,6,65,10],[64,1,64,5],[64,6,64,10],[64,11,64,14],[66,11,66,14],[63,15,63,17],[63,18,63,21],[63,22,63,25],[63,1,63,5],[63,6,63,10],[69,1,69,5],[69,6,69,10],[68,1,68,5],[68,6,68,10],[68,11,68,14],[70,11,70,14],[67,1,67,5],[67,6,67,10],[66,1,66,5],[66,6,66,10],[70,26,70,29],[70,30,70,33],[72,30,72,33],[73,11,73,14],[73,15,73,17],[73,18,73,21],[73,22,73,25],[72,15,72,17],[72,18,72,21],[72,22,72,25],[72,26,72,29],[71,11,71,14],[71,15,71,17],[71,18,71,21],[71,22,71,25],[71,26,71,29],[71,30,71,33],[73,26,73,29],[73,30,73,33],[72,1,72,5],[72,6,72,10],[72,11,72,14],[75,11,75,14],[70,15,70,17],[70,18,70,21],[70,22,70,25],[71,1,71,5],[71,6,71,10],[70,1,70,5],[70,6,70,10],[74,11,74,14],[74,15,74,17],[74,18,74,21],[74,22,74,25],[75,15,75,17],[75,18,75,21],[75,22,75,25],[75,26,75,29],[75,30,75,33],[75,1,75,5],[75,6,75,10],[74,1,74,5],[74,6,74,10],[74,26,74,29],[74,30,74,33],[73,1,73,5],[73,6,73,10]]}
[null,"6.Picking List",null,null,null,null,null,null,null,null,null,null,null,null,null,null,null,null,null,null,null,null,null,null,null,null,null,null,null,null,null,null,null,null,null,null,null,"AQL Critical",null,"AQM Office",{"$f":"IF('Inspection data'!B27=0, \"\", 'Inspection data'!B27)","v":""},null," ",null," "]
[null,null,null,null,null,null,null,null,null,null,null,null,null,null,null,null,null,null,null,null,null,null,null,null,null,null,null,null,null,null,null,null,null,null,null,null,null,"AQL Major",{"$f":"IF('Inspection data'!B14=0, \"\", 'Inspection data'!B14)","v":""},"Template","aqm_inspection_light",null," "]
[null,null,null,null,null,null,null,null,null,null,null,null,null,null,null,null,null,null,null,null,null,null,null,null,null,null,null,null,null,null,null,null,null,null,null,null,null,"AQL Minor",{"$f":"IF('Inspection data'!B15=0, \"\", 'Inspection data'!B15)","v":""},"Version","2.0",null," "]
[null,null,null,null,null,null,null,null,null,null,null,null,null,null,null,null,null,null,null,null,null,null,null,null,null,null,null,null,null,null,null,null,null,null,null,null,null,null,null,null,null,null," "]
[null,null,null,null,null,null,null,null,null,null,null,null,null,null,null,null,null,null,null,null,null,null,null,null,null,null,null,null,null,null,null,null,null,null,null,null,"Date",{"$f":"DAY(AA9)","v":0},{"$f":"MONTH(AA9)","v":1},{"$f":"SUBSTITUTE(YEAR(AA9),\"20\",\"\")","v":"1900"},null,null," "]
[null,"Customer",null,null,null,null,null,null,null,{"$f":"IF('Inspection data'!B1=0, \"\", 'Inspection data'!B1)","v":""},null,null,null,null,null,null,null,null,"Report n°",null,null,null,null,null,null,null,{"$f":"IF('Inspection data'!B4=0, \"\", 'Inspection data'!B4)","v":""},null,null,null,null,null,null,null,null,null,null,null,null,null,null,null," "]
[null,"Brand name",null,null,null,null,null,null,null,{"$f":"IF('Inspection data'!B2=0, \"\", 'Inspection data'!B2)","v":""},null,null,null,null,null,null,null,null,"Inspection type",null,null,null,null,null,null,null,{"$f":"IF('Inspection data'!B5=0, \"\", 'Inspection data'!B5)","v":""},null,null,null,null,null,null,null,null,null,null,null,null,null,null,null," "]
[null,"Order number",null,null,null,null,null,null,null,{"$f":"IF('Shipment data'!B2=0, \"\", 'Shipment data'!B2)","v":""},null,null,null,null,null,null,null,null,"Level",null,null,null,null,null,null,null,{"$f":"IF('Inspection data'!B9=0,\"\", 'Inspection data'!B9)","v":""},null,null,null,null,null,null,null,null,null,null,null,null,null,null,null," "]
[null,"Reference code",null,null,null,null,null,null,null,{"$f":"IF('Shipment data'!B11=0, \"\", 'Shipment data'!B11)","v":""},null,null,null,null,null,null,null,null,"Inspection date",null,null,null,null,null,null,null,{"$f":"'Inspection data'!B23","v":"00:00:00"},null,null,null,null,null,null,null,null,null,null,null,null,null,null,null," "]
[null,"Reference name",null,null,null,null,null,null,null,{"$f":"IF('Shipment data'!B12=0, \"\", 'Shipment data'!B12)","v":""},null,null,null,null,null,null,null,null,"Inspection place",null,null,null,null,null,null,null,{"$f":"IF('Inspection data'!B29=0, \"\", 'Inspection data'!B29)","v":"factory"}]
[null,"Item description",null,null,null,null,null,null,null,{"$f":"IF('Shipment data'!B13=0, \"\", 'Shipment data'!B13)","v":""},null,null,null,null,null,null,null,null,"Province",null,null,null,null,null,null,null,{"$f":"IF('Inspection data'!B25=0, \"\", 'Inspection data'!B25)","v":""},null,null,null,null,null,null,null,null,null,null,null,null,null,null,null," "]
[null,"Product category",null,null,null,null,null,null,null,{"$f":"IF('Shipment data'!B27=0, \"\", 'Shipment data'!B27)","v":""},null,null,null,null,null,null,null,null,"City",null,null,null,null,null,null,null,{"$f":"IF('Inspection data'!B26=0, \"\", 'Inspection data'!B26)","v":""},null,null,null,null,null,null,null,null,null,null,null,null,null,null,null," "]
[null,"Season",null,null,null,null,null,null,null,{"$f":"IF('Shipment data'!D14=0, \"\", 'Shipment data'!D14)","v":""},null,null,null,{"$f":"IF('Shipment data'!D15=0, \"\", 'Shipment data'!D15)","v":""},null,null,null,null,"Agent",null,null,null,null,null,null,null,{"$f":"IF('Inspection data'!B31=0, \"\", 'Inspection data'!B31)","v":""}]
[null,"Ordered quantity",null,null,null,null,null,null,null,{"$f":"IF('Shipment data'!B19=0, \"\", 'Shipment data'!B19)","v":" "},null,null,null,null,null,null,null,null,"Supplier",null,null,null,null,null,null,null,{"$f":"IF('Inspection data'!B34=0, \"\", 'Inspection data'!B34)","v":""},null,null,null,null,null,null,null,null,null,null,null,null,null,null,null," "]
[null,"Total packed qty",null,null,null,null,null,null,null," ",null,null,null,null,null,null,null,null,"Factory",null,null,null,null,null,null,null,{"$f":"IF('Inspection data'!B37=0, \"\", 'Inspection data'!B37)","v":""},null,null,null,null,null,null,null,null,null,null,null,null,null,null,null," "]
[null,"Total presented qty",null,null,null,null,null,null,null," ",null,null,null,null,null,null,null,null,"If Reinsp number of previous report",null,null,null,null,null,null,null,{"$f":"IF('Inspection data'!B7=0, \"\", 'Inspection data'!B7)","v":""},null,null,null,null,null,null,null,null,null,null,null,null,null,null,null," "]
[null,"Qty of presented cartons",null,null,null,null,null,null,null," ",null,null,null,null,null,null,null,null,"Inspector",null,null,null,null,null,null,null,{"$f":"IF('Inspection data'!B41=0, \"\", 'Inspection data'!B41)","v":""},null,null,null,null,null,null,null,null,null,null,null,null,null,null,null," "]
[null,null,null,null,null,null,null,null,null,null,null,null,null,null,null,null,null,null,null,null,null,null,null,null,null,null,null,null,null,null,null,null,null,null,null,null,null,null,null,null,null,null," "]
[null,null,null,null,null,null,null,null,null,null,null,null,null,null,null,null,null,null,null,null,null,"NAME",null,null,null,null,null,null,null,"CODE"]
[null,null,null,null,null,null,null,null,null,null,null,null,null,null,null,null,null,null,"Color1",null,null,{"$f":"IF('Shipment data'!$B$22=0, \"\", 'Shipment data'!$B$22)","v":""},null,null,null,null,null,null,null,{"$f":"IF('Shipment data'!$B$21=0, \"\", 'Shipment data'!$B$21)","v":""},null,null,null,null,null,null,null,null,null,null,null,null," "]
[null,"Inspected pieces",null,null,null,null,null,null,null,null,null,null,null,null,null,null,null,null,"Color2",null,null,{"$f":"IF('Shipment data'!$C$22=0, \"\", 'Shipment data'!$C$22)","v":""},null,null,null,null,null,null,null,{"$f":"IF('Shipment data'!$C$21=0, \"\", 'Shipment data'!$C$21)","v":""},null,null,null,null,null,null,null,null,null,null,null,null," "]
[null,null,null,null,null,null,null,null,null,null,null,null,null,null,null,null,null,null,"Color3",null,null,{"$f":"IF('Shipment data'!$D$22=0, \"\", 'Shipment data'!$D$22)","v":""},null,null,null,null,null,null,null,{"$f":"IF('Shipment data'!$D$21=0, \"\", 'Shipment data'!$D$21)","v":""},null,null,null,null,null,null,null,null,null,null,null,null," "]
[null,null,null,null,null,null,null,null,null,null,null,null,null,null,null,null,null,null,"Color4",null,null,{"$f":"IF('Shipment data'!$E$22=0, \"\", 'Shipment data'!$E$22)","v":""},null,null,null,null,null,null,null,{"$f":"IF('Shipment data'!$E$21=0, \"\", 'Shipment data'!$E$21)","v":""}]
[null,null,null,null,null,null,null,null,null,null,null,null,null,null,null,null,null,null,"Color5",null,null,{"$f":"IF('Shipment data'!$F$22=0, \"\", 'Shipment data'!$F$22)","v":""},null,null,null,null,null,null,null,{"$f":"IF('Shipment data'!$F$21=0, \"\", 'Shipment data'!$F$21)","v":""}]
[null,null,null,null,null,null,null,null,null,null,null,null,null,null,null,null,null,null,"Color6",null,null,{"$f":"IF('Shipment data'!$G$22=0, \"\", 'Shipment data'!$G$22)","v":""},null,null,null,null,null,null,null,{"$f":"IF('Shipment data'!$G$21=0, \"\", 'Shipment data'!$G$21)","v":""},null,null,null,null,null,null,null,null,null,null,null,null," "]
[null,null,null,null,null,null,null,null,null,null,null,null,null,null,null,null,null,null,null,null,null,null,null,null,null,null,null,null,null,null,null,null,null,null,null,null,null,null,null,null,null,null," "]
[null,"Order number",null,null,null,null,"Reference number",null,null,null,null,"Color",null,null,null,"Carton number",null,null,"Size",null,null,null,"Qty of pcs in carton",null,null,null,"Qty of pcs picked",null,null,null,"New packing list",null,null,null,null,null,null,null,null,null,null,null," "]
[null,null,null,null,null,null,null,null,null,null,null,null,null,null,null,null,null,null,null,null,null,null,null,null,null,null,null,null,null,null,null,null,null,null,null,null,null,null,null,null,null,null," "]

{"sheet":"Packinglist","index":15,"n_rows":173,"n_cols":2,"rows_kept":173,"cut":false,"hidden":false,"merged":[[129,1,133,19],[134,1,170,19],[172,1,176,19],[177,1,213,19],[0,1,4,19],[5,1,41,19],[43,1,47,19],[48,1,84,19],[86,1,90,19],[91,1,127,19]]}
[null,"Packing list"]
[]
[]
[]
[]
[]
[]
[]
[]
[]
[]
[]
[]
[]
[]
[]
[]
[]
[]
[]
[]
[]
[]
[]
[]
[]
[]
[]
[]
[]
[]
[]
[]
[]
[]
[]
[]
[]
[]
[]
[]
[]
[]
[null,"Packing list"]
[]
[]
[]
[]
[]
[]
[]
[]
[]
[]
[]
[]
[]
[]
[]
[]
[]
[]
[]
[]
[]
[]
[]
[]
[]
[]
[]
[]
[]
[]
[]
[]
[]
[]
[]
[]
[]
[]
[]
[]
[]
[]
[null,"Packing list"]
[]
[]
[]
[]
[]
[]
[]
[]
[]
[]
[]
[]
[]
[]
[]
[]
[]
[]
[]
[]
[]
[]
[]
[]
[]
[]
[]
[]
[]
[]
[]
[]
[]
[]
[]
[]
[]
[]
[]
[]
[]
[]
[null,"Packing list"]
[]
[]
[]
[]
[]
[]
[]
[]
[]
[]
[]
[]
[]
[]
[]
[]
[]
[]
[]
[]
[]
[]
[]
[]
[]
[]
[]
[]
[]
[]
[]
[]
[]
[]
[]
[]
[]
[]
[]
[]
[]
[]
[null,"Packing list"]

{"sheet":"Shipment data","index":16,"n_rows":26,"n_cols":3,"rows_kept":26,"cut":false,"hidden":true,"merged":[]}
[null,"no duplicates","with duplicates"]
["Order"]
["Office"]
["Incoterm"]
["Forwarder"]
["Port of shipment"]
["Packaging 1 (carton / hanger)"]
["Packaging 2 (ass / std /mix…)"]
["Packaging 3 (bag / box / flat….)"]
[]
["Ref code"]
["Ref Name"]
["Description"]
["Season code"]
["Season year"]
["Color code"]
["Color name"]
[]
["Quantity ordered"," "]
[]
["color code (no dup)"]
["color name (no dup)"]
[]
[]
[]
["Product category level","product category"]

{"sheet":"Inspection data","index":17,"n_rows":46,"n_cols":2,"rows_kept":46,"cut":false,"hidden":true,"merged":[]}
["Customer"]
["Brand"]
[]
["Report No"]
["Insp type "]
[]
["Linked inspection No (if Re1 put Fi1, if Fi1 put In1 if any)"]
[]
[]
["Sampling AQL level "]
["Sampling fix number",0]
["Sampling percentage",0]
["AQL Cr"]
["AQL MAJ"]
["AQL Min"]
[]
["Customer tolerance 1"]
["Customer tolerance 2"]
["Customer tolerance 3"]
[]
[]
["Inspection date start"]
["Inspection date stop"]
["Inspection Country"]
["Inspection area"]
["Inspection city"]
["Inspection Office"]
["Inspection office contact"]
["Inspection place (factory, AQM platform, warehouse)","factory"]
[]
["Agent"]
["Agent code"]
["Agent contact"]
["Supplier"]
["Supplier code"]
["Supplier contact"]
["Factory"]
["Factory code"]
["Factory contact"]
[]
["Inspectors"]
["Agent address "]
["Supplier address "]
["Factory address "]
[]
["Country manager "]

{"sheet":"Points to check data","index":18,"n_rows":2,"n_cols":17,"rows_kept":2,"cut":false,"hidden":true,"merged":[[0,0,0,4],[0,6,0,10],[0,12,0,16]]}
["CONFORMITY",null,null,null,null,null,"TEST",null,null,null,null,null,"PACKING"]
["No.","name","pass / fail","% of pieces","comments",null,"No.","name","pass / fail","% of pieces","comments",null,"id","name","pass / fail","% of pieces","comments"]